{"text_format":"1","workbook":"xlsx","n_sheets":19,"sheets":["Anleitung","Organisation","Stammdaten HF","Auswertung","Ergebnis","Sammelblatt","Meldescheine","Sportbeitrag","RichterbuchIGP","RichterbuchGPr","RichterbuchFH","RichterbuchBH-VT","RichterbuchIBGH","RichterbuchSparteF","RichterbuchSparteU","RichterbuchSparteS","RichterbuchStöber","RichterbuchTeam","Tabelle3"],"not_rendered":{"charts":0,"images":80,"macros":1,"external_links":0,"defined_names":46,"comments":0,"pivot_tables":0},"unopened":[],"bounds":{"document_bytes":16777216,"sheet_cells":100000,"rows_first":2000,"rows_last":500,"rows_between":2000,"halvings":0,"cell_chars":16384,"cell_head_chars":4096},"cells_cut":0,"cells_raw":0,"read":"whole","date_system":"1900"}

{"sheet":"Anleitung","index":0,"n_rows":44,"n_cols":1,"rows_kept":44,"cut":false,"hidden":false,"merged":[[2,0,15,10],[28,0,41,10],[43,0,50,10],[17,0,26,10],[0,0,0,10]]}
["Falls Markoschutz aktiv, bitte deaktivieren !!!"]
[]
["Diese Datei wurde angelegt um den \"Formularkrieg\" etwas zu vereinfachen.\nSie gilt für alle Prüfungen im Bereich Gebrauchshundesport incl. Dem Team-Test\nHiermit können die Meldescheine, Richterblätter und Ergebnislisten ausgedruckt, bzw. erstellt werden.\n\nAnleitung:\nSchritt 1\nIn der Tabelle „Organisation“ zunächst die Daten der Prüfung anlegen\nneben den Prf-Daten sind 2 Schaltflächen. Hiermit können die Prf-Daten für die Ausdrucke der LR-Unterlagen bzw. der Ergebnisliste in die Kopf-/Fußzeilen übernommen werden. Der 2. entfernt diese wieder, falls gewünscht.\n Für die Verbände, die die Formulare für den Sportbeitrag benötigen, auch gleich den Sockelbeitrag eintragen."]
[]
[]
[]
[]
[]
[]
[]
[]
[]
[]
[]
[]
[]
[]
["Schritt 2\n In der Tabelle „Stammdaten“ HF die Daten der HF und der Hunde eintragen\nLinks davon sind 2 Schaltflächen zum Ausdrucken von Formularen\nRB = Richterunterlagen für den betreffenden Teilnehmer\nMeld = Meldeschein für den Teilnehmer\nGanz Wichtig: Die Tabelle darf nicht sortiert werden, die Spalte „Nr.“ muss chronologisch aufwärts gehen.\nFalls die Teilnehmer hier umsortiert werden müssen nur die Daten ab der Spalte C bis AA mit Kopieren und Einfügen verändern. (Ist nicht unbedingt erforderlich, weil die Ergebnisliste nach Prf-Stufe und Ergebnis sortiert wird. Auf keinen Fall mit Ausschneiden verändern !!!!\n"]
[]
[]
[]
[]
[]
[]
[]
[]
[]
[]
["Schritt 3\nNach Datenerfassung und dem Ausdrucken der Prf-Unterlagen kann mit der Wettkampfeingabe in der Tabelle „Auswertung\" begonnen werden. Nur die gelben Felder ausfüllen, alle anderen beinhalten Formeln.\nRechts neben der Tabelle ist eine Schaltfläche, mit der eine Ergebnisliste in einem neuen Dok angelegt wird.\nDiese ist nach Prüfungsstufe und Ergebnis sortiert, die leeren Zeilen wurden entfernt.\nSie kann jetzt bedenkenlos nachbearbeitet werden, alle Formeln sind entfernt.\nIn der Tabelle Ergebnis sind die Daten erfasst, aber noch nicht sortiert.\nDiese Tabelle bitte nicht bearbeiten, Sie ist die Vorlage für die Ergebnislisten-Erstellung\n\nRegelung für BH-Prüfungen:\nDa keine Bekanntegaben der Punkte erfolgen darf, bitte nur b oder nb eingeben. \n"]
[]
[]
[]
[]
[]
[]
[]
[]
[]
[]
[]
[]
[]
[]
["Schritt 4\nNach Abschluss der Prüfung kann die Tabelle „Sammelblatt“ aufgerufen werden. Hier sind die statistischen Daten manuell einzutragen."]

{"sheet":"Organisation","index":1,"n_rows":67,"n_cols":7,"rows_kept":67,"cut":false,"hidden":false,"merged":[[27,1,31,1],[39,1,44,1],[54,1,56,1],[36,1,38,1],[45,1,53,1],[32,1,35,1]]}
[]
[]
["Hundesportverband","swhv",null,{"$f":"IF(B3=\"\",\"\",INDEX(B63:B67,MATCH(B3,A63:A67)))","v":"Südwestdeutscher Hundesportverband"}]
[]
["Prüfungsart","Vereinsprüfung"]
[" / Prf.-Nr.",135]
["Veranstalter","Hundefreunde Irgendwo"]
["Vereinsnummer","0305"]
["Kreisgruppe",3]
["Datum","30.03.2019",null,null,null,null,"Bitte etwas Geduld !!"]
["LR 1","Horst Hinterhuber"]
["LR 2"]
[]
["Prüfungsleiter","Hans Wurst"]
["Straße","Metzgerstr. 4"]
["PLZ Ort","68259 Mannheim"]
["Telefon","0621 xxxxx"]
[]
["Helfer 1"]
["Helfer 2"]
[]
["Höhe Sportbeitrag",1.1000000000000001]
[]
[]
[null,null,"Kürzel","Max"]
[null,null,"IGP V",300]
["Pfr-Arten","Prüfungsart","IGP 1",300,"PrfZiff"]
[null,"Gebrauchshundeprüfungen","IGP 2",300,1]
[null,null,"IGP 3",300,1]
[null,null,"IGP ZTP",300,1]
[null,null,"IFH V",100,1]
[null,null,"IFH 1",100,1]
[null,"Fährtenhundeprüfungen","IFH 2",100,2]
[null,null,"IGP FH",200,2]
[null,null,"GPr 1",200,2]
[null,null,"GPr 2",200,2]
[null,"Prüfungen ohne Fährte","GPr 3",200,3]
[null,null,"IBGH 1",100,3]
[null,null,"IBGH 2",100,3]
[null,"Begleithundeprüfungen","IBGH 3",100,8]
[null,null,"BH",60,8]
[null,null,"BH/SK",60,8]
[null,null,"SK",null,9]
[null,null,"FPr 1",100,9]
[null,null,"UPr 1",100,10]
[null,"Spartenprüfungen","SPr 1",100,4]
[null,null,"FPr 2",100,5]
[null,null,"UPr 2",100,6]
[null,null,"SPr 2",100,4]
[null,null,"FPr 3",100,5]
[null,null,"UPr 3",100,6]
[null,null,"SPr 3",100,4]
[null,null,"StöberSt. 1",100,5]
[null,null,"StöberSt. 2",100,6]
[null,"Stöberprüfungen","StöberSt. 3",100,7]
[null,null,"Team-Test",150,7]
[null,null,null,null,7]
[null,null,null,null,11]
[]
[]
[]
["Verbände"]
["BLV","Bayerischer Landesverband  für Hundesport"]
["DSV","Deutscher Sporthundverband"]
["HSVRM","Hundesportverband Rhein Main"]
["SGSV","Schutz- und Gebrauchshunde-sportverband"]
["swhv","Südwestdeutscher Hundesportverband"]

{"sheet":"Stammdaten HF","index":2,"n_rows":38,"n_cols":27,"rows_kept":38,"cut":false,"hidden":false,"merged":[[0,16,0,23],[0,24,0,26],[0,9,0,14]]}
[null,null,null,null,"Hundeführer",null,null,null,null,"Besitzer",null,null,null,null,null,null,"Hund",null,null,null,null,null,null,null,"Impfung"]
["Nr.","Drucken:","PrfStufe","Name","Vorname","Verein","MNr","Str","Ort","Name","Vorname","Verein","MNr","KG","Str","Ort","Geführter Hund","Rasse","LB/Nr.","Wurftag","Geschl.","ZB/Reg","Täto","Chip","ImpfDat","ImpfGültig","TierarztName"]
[1,null,"IFH 1","Mustermax","Andreas","sspv MA",30500001,"ringstr","Mannheim","Hübsch","Dorothea","SSPV",30512345,3,"Max-Wi","Schönau","Axel","Mixy",123,"1978-07-01","Rüde","VDH/DMC 34345","MC- 3344",454454567883111]
[2,null,"BH/SK","Fröhlich","Marion","VfH Ilvesheim",30400345,"Kreisring 2","Ilvesheim","siehe HF",null,null,null,null,null,null,"Trigger","Hollands",4567,"2013-10-14","Hündin","asasas","ohne",276222333444555]
[3,null,"GPr 2","Hintersee","Florian","HSV Frankenthal",null,null,null,null,null,null,null,null,null,null,"Fräulein Meier","Mischling"]
[4,null,"IGP 3","Hexenmeister","Kunibert","VdH Eningen",null,null,null,null,null,null,null,null,null,null,"Eidotter","Edelmix"]
[5,null,"Team-Test","Fröhlich","Marion","VfH Ilvesheim",30400345,"Kreisring 2","Ilvesheim","siehe HF",null,null,null,null,null,null,"Trigger","Hollands",4567,"2013-10-14","Hündin","asasas",null,276222333444555]
[6,null,"SK","maier"]
[7]
[8]
[9]
[10]
[11]
[12]
[13]
[14]
[15]
[16]
[17]
[18]
[19]
[20]
[21]
[22]
[23]
[24]
[25]
[26]
[27]
[28]
[29]
[30]
[31]
[32]
[33]
[34]
[35]
[36]

{"sheet":"Auswertung","index":3,"n_rows":39,"n_cols":27,"rows_kept":39,"cut":false,"hidden":false,"merged":[]}
["Kat-Nr.","Name HF","HundName\nRasse","Stufe","A","B","C","TSB","Gesamt","Note",null,null,null,null,null,"Note",null,"PrfZiffer",null,"Prf\nbest.","Dis/Abb","MinPktErreicht","MinPktErreicht","MinPktErreicht","MinPktzl","MaxPktzl"]
[1,{"$f":"CONCATENATE(L2,\"  \",K2,CHAR(10),O2)","v":"Andreas  Mustermax\nsspv MA"},{"$f":"CONCATENATE(M2,CHAR(10),N2)","v":"Axel\nMixy"},{"$f":"IF(LOOKUP($A2,'Stammdaten HF'!$A:A,'Stammdaten HF'!$C:C)=\"\",\"\",LOOKUP($A2,'Stammdaten HF'!$A:A,'Stammdaten HF'!$C:C))","v":"IFH 1"},84,90,91,"a",{"$f":"IF(U2,\"\",IF(SUM(E2,F2,G2)>0,SUM(E2:G2),\"\"))","v":265},{"$f":"IF(U2,\"Dis\",IF(OR(D2=\"BH\",D2=\"BH/SK\",D2=\"SK\"),AA2,IF(I2=\"\",\"\",IF(OR(D2=\"BH/SK\",D2=\"BH\"),IF(T2=\"J\",Q2,\"nb\"),Q2))))","v":"V"},{"$f":"IF(LOOKUP($A2,'Stammdaten HF'!$A:A,'Stammdaten HF'!$D:D)=\"\",\"\",LOOKUP($A2,'Stammdaten HF'!$A:A,'Stammdaten HF'!$D:D))","v":"Mustermax"},{"$f":"IF(LOOKUP($A2,'Stammdaten HF'!$A:A,'Stammdaten HF'!$E:E)=\"\",\"\",LOOKUP($A2,'Stammdaten HF'!$A:A,'Stammdaten HF'!$E:E))","v":"Andreas"},{"$f":"IF(LOOKUP($A2,'Stammdaten HF'!$A:A,'Stammdaten HF'!$Q:Q)=\"\",\"\",LOOKUP($A2,'Stammdaten HF'!$A:A,'Stammdaten HF'!$Q:Q))","v":"Axel"},{"$f":"IF(LOOKUP($A2,'Stammdaten HF'!$A:A,'Stammdaten HF'!$R:R)=\"\",\"\",LOOKUP($A2,'Stammdaten HF'!$A:A,'Stammdaten HF'!$R:R))","v":"Mixy"},{"$f":"IF(LOOKUP($A2,'Stammdaten HF'!$A:A,'Stammdaten HF'!$F:F)=\"\",\"\",LOOKUP($A2,'Stammdaten HF'!$A:A,'Stammdaten HF'!$F:F))","v":"sspv MA"},{"$f":"IF(I2>=S2,\"V\",IF(I2>=(90*Z2/100),\"SG\",IF(I2>=(80*Z2/100),\"G\",IF(D2=\"Team-Test\",IF(I2>=(53*Z2/100),\"bef\",\"mgh\"),IF(I2>=(70*Z2/100),\"bef\",\"mgh\")))))","v":"V"},{"$f":"IF(D2=\"\",\"\",IF(OR(D2=\"BH\",D2=\"BH/SK\",D2=\"SK\"),IF(I2>=42,\"best\",\"nb\"),IF(D2=\"Team-Test\",IF(I2<80,\"mgh\",P2),IF(OR(D2=\"IFH 1\",D2=\"IFH 2\", D2=\"GPr 3\",D2= \"GPr 2\",D2= \"GPr 1\", D2=\"IGP FH\"),P2,IF(T2=\"J\",P2,\"mgh\")))))","v":"V"},{"$f":"INDEX(Organisation!$E$28:$E$58,MATCH(D2,Organisation!$C$26:$C$56,))","v":2},{"$f":"IF(Z2=300,286,96*Z2/100)","v":96},{"$f":"IF(I2=\"\",\"\",IF(D2=\"Team-Test\",IF(I2>=Y2,\"J\",\"N\"),IF(OR(V2=\"N\",W2=\"N\",X2=\"N\"),\"N\",\"J\")))","v":"J"},{"$f":"OR($E2=\"d\",$F2=\"d\",$G2=\"d\")","v":false},{"$f":"IF(E2<>\"\",IF(E2<$Y2,\"N\",\"J\"),\"J\")","v":"J"},{"$f":"IF(F2<>\"\",IF(F2<$Y2,\"N\",\"J\"),\"J\")","v":"J"},{"$f":"IF(G2<>\"\",IF(G2<$Y2,\"N\",\"J\"),\"J\")","v":"J"},{"$f":"IF(D2=\"Team-Test\",80,Z2*0.7/(ROUND(Z2/100,0)))","v":70},{"$f":"INDEX(Organisation!$D$26:$D$56,MATCH(D2,Organisation!$C$26:$C$56,))","v":100},{"$f":"IF(OR(E2=\"nb\",F2=\"nb\",G2=\"nb\"),\"nb\",IF(AND(E2=\"\",F2=\"\",G2=\"\"),\"\",\"best\"))","v":"best"}]
[2,{"$f":"CONCATENATE(L3,\"  \",K3,CHAR(10),O3)","v":"Marion  Fröhlich\nVfH Ilvesheim"},{"$f":"CONCATENATE(M3,CHAR(10),N3)","v":"Trigger\nHollands"},{"$f":"IF(LOOKUP($A3,'Stammdaten HF'!$A:A,'Stammdaten HF'!$C:C)=\"\",\"\",LOOKUP($A3,'Stammdaten HF'!$A:A,'Stammdaten HF'!$C:C))","v":"BH/SK"},null,null,null,null,"","",{"$f":"IF(LOOKUP($A3,'Stammdaten HF'!$A:A,'Stammdaten HF'!$D:D)=\"\",\"\",LOOKUP($A3,'Stammdaten HF'!$A:A,'Stammdaten HF'!$D:D))","v":"Fröhlich"},{"$f":"IF(LOOKUP($A3,'Stammdaten HF'!$A:A,'Stammdaten HF'!$E:E)=\"\",\"\",LOOKUP($A3,'Stammdaten HF'!$A:A,'Stammdaten HF'!$E:E))","v":"Marion"},{"$f":"IF(LOOKUP($A3,'Stammdaten HF'!$A:A,'Stammdaten HF'!$Q:Q)=\"\",\"\",LOOKUP($A3,'Stammdaten HF'!$A:A,'Stammdaten HF'!$Q:Q))","v":"Trigger"},{"$f":"IF(LOOKUP($A3,'Stammdaten HF'!$A:A,'Stammdaten HF'!$R:R)=\"\",\"\",LOOKUP($A3,'Stammdaten HF'!$A:A,'Stammdaten HF'!$R:R))","v":"Hollands"},{"$f":"IF(LOOKUP($A3,'Stammdaten HF'!$A:A,'Stammdaten HF'!$F:F)=\"\",\"\",LOOKUP($A3,'Stammdaten HF'!$A:A,'Stammdaten HF'!$F:F))","v":"VfH Ilvesheim"},"V",{"$f":"IF(D3=\"\",\"\",IF(OR(D3=\"BH\",D3=\"BH/SK\",D3=\"SK\"),AA3,IF(D3=\"Team-Test\",IF(I3<80,\"mgh\",P3),IF(OR(D3=\"IFH 1\",D3=\"IFH 2\", D3=\"GPr 3\",D3= \"GPr 2\",D3= \"GPr 1\", D3=\"IGP FH\"),P3,IF(T3=\"J\",P3,\"mgh\")))))","v":""},{"$f":"INDEX(Organisation!$E$28:$E$58,MATCH(D3,Organisation!$C$26:$C$56,))","v":9},57.6,"",{"$f":"OR($E3=\"d\",$F3=\"d\",$G3=\"d\")","v":false},"J","J","J",42,{"$f":"INDEX(Organisation!$D$26:$D$56,MATCH(D3,Organisation!$C$26:$C$56,))","v":60},""]
[3,"Florian  Hintersee\nHSV Frankenthal","Fräulein Meier\nMischling",{"$f":"IF(LOOKUP($A4,'Stammdaten HF'!$A:A,'Stammdaten HF'!$C:C)=\"\",\"\",LOOKUP($A4,'Stammdaten HF'!$A:A,'Stammdaten HF'!$C:C))","v":"GPr 2"},null,88,92,"a",180,"SG",{"$f":"IF(LOOKUP($A4,'Stammdaten HF'!$A:A,'Stammdaten HF'!$D:D)=\"\",\"\",LOOKUP($A4,'Stammdaten HF'!$A:A,'Stammdaten HF'!$D:D))","v":"Hintersee"},{"$f":"IF(LOOKUP($A4,'Stammdaten HF'!$A:A,'Stammdaten HF'!$E:E)=\"\",\"\",LOOKUP($A4,'Stammdaten HF'!$A:A,'Stammdaten HF'!$E:E))","v":"Florian"},{"$f":"IF(LOOKUP($A4,'Stammdaten HF'!$A:A,'Stammdaten HF'!$Q:Q)=\"\",\"\",LOOKUP($A4,'Stammdaten HF'!$A:A,'Stammdaten HF'!$Q:Q))","v":"Fräulein Meier"},{"$f":"IF(LOOKUP($A4,'Stammdaten HF'!$A:A,'Stammdaten HF'!$R:R)=\"\",\"\",LOOKUP($A4,'Stammdaten HF'!$A:A,'Stammdaten HF'!$R:R))","v":"Mischling"},{"$f":"IF(LOOKUP($A4,'Stammdaten HF'!$A:A,'Stammdaten HF'!$F:F)=\"\",\"\",LOOKUP($A4,'Stammdaten HF'!$A:A,'Stammdaten HF'!$F:F))","v":"HSV Frankenthal"},"SG",{"$f":"IF(D4=\"\",\"\",IF(OR(D4=\"BH\",D4=\"BH/SK\",D4=\"SK\"),IF(I4>=42,\"best\",\"nb\"),IF(D4=\"Team-Test\",IF(I4<80,\"mgh\",P4),IF(OR(D4=\"IFH 1\",D4=\"IFH 2\", D4=\"GPr 3\",D4= \"GPr 2\",D4= \"GPr 1\", D4=\"IGP FH\"),P4,IF(T4=\"J\",P4,\"mgh\")))))","v":"SG"},{"$f":"INDEX(Organisation!$E$28:$E$58,MATCH(D4,Organisation!$C$26:$C$56,))","v":3},192,"J",false,"J","J","J",70,{"$f":"INDEX(Organisation!$D$26:$D$56,MATCH(D4,Organisation!$C$26:$C$56,))","v":200},"best"]
[4,"Kunibert  Hexenmeister\nVdH Eningen","Eidotter\nEdelmix",{"$f":"IF(LOOKUP($A5,'Stammdaten HF'!$A:A,'Stammdaten HF'!$C:C)=\"\",\"\",LOOKUP($A5,'Stammdaten HF'!$A:A,'Stammdaten HF'!$C:C))","v":"IGP 3"},97,95,93,"vh",285,"SG",{"$f":"IF(LOOKUP($A5,'Stammdaten HF'!$A:A,'Stammdaten HF'!$D:D)=\"\",\"\",LOOKUP($A5,'Stammdaten HF'!$A:A,'Stammdaten HF'!$D:D))","v":"Hexenmeister"},{"$f":"IF(LOOKUP($A5,'Stammdaten HF'!$A:A,'Stammdaten HF'!$E:E)=\"\",\"\",LOOKUP($A5,'Stammdaten HF'!$A:A,'Stammdaten HF'!$E:E))","v":"Kunibert"},{"$f":"IF(LOOKUP($A5,'Stammdaten HF'!$A:A,'Stammdaten HF'!$Q:Q)=\"\",\"\",LOOKUP($A5,'Stammdaten HF'!$A:A,'Stammdaten HF'!$Q:Q))","v":"Eidotter"},{"$f":"IF(LOOKUP($A5,'Stammdaten HF'!$A:A,'Stammdaten HF'!$R:R)=\"\",\"\",LOOKUP($A5,'Stammdaten HF'!$A:A,'Stammdaten HF'!$R:R))","v":"Edelmix"},{"$f":"IF(LOOKUP($A5,'Stammdaten HF'!$A:A,'Stammdaten HF'!$F:F)=\"\",\"\",LOOKUP($A5,'Stammdaten HF'!$A:A,'Stammdaten HF'!$F:F))","v":"VdH Eningen"},"SG","SG",{"$f":"INDEX(Organisation!$E$28:$E$58,MATCH(D5,Organisation!$C$26:$C$56,))","v":1},286,"J",false,"J","J","J",70,{"$f":"INDEX(Organisation!$D$26:$D$56,MATCH(D5,Organisation!$C$26:$C$56,))","v":300},"best"]
[5,"Marion  Fröhlich\nVfH Ilvesheim","Trigger\nHollands",{"$f":"IF(LOOKUP($A6,'Stammdaten HF'!$A:A,'Stammdaten HF'!$C:C)=\"\",\"\",LOOKUP($A6,'Stammdaten HF'!$A:A,'Stammdaten HF'!$C:C))","v":"Team-Test"},null,49,80,"ng",129,"G",{"$f":"IF(LOOKUP($A6,'Stammdaten HF'!$A:A,'Stammdaten HF'!$D:D)=\"\",\"\",LOOKUP($A6,'Stammdaten HF'!$A:A,'Stammdaten HF'!$D:D))","v":"Fröhlich"},{"$f":"IF(LOOKUP($A6,'Stammdaten HF'!$A:A,'Stammdaten HF'!$E:E)=\"\",\"\",LOOKUP($A6,'Stammdaten HF'!$A:A,'Stammdaten HF'!$E:E))","v":"Marion"},{"$f":"IF(LOOKUP($A6,'Stammdaten HF'!$A:A,'Stammdaten HF'!$Q:Q)=\"\",\"\",LOOKUP($A6,'Stammdaten HF'!$A:A,'Stammdaten HF'!$Q:Q))","v":"Trigger"},{"$f":"IF(LOOKUP($A6,'Stammdaten HF'!$A:A,'Stammdaten HF'!$R:R)=\"\",\"\",LOOKUP($A6,'Stammdaten HF'!$A:A,'Stammdaten HF'!$R:R))","v":"Hollands"},{"$f":"IF(LOOKUP($A6,'Stammdaten HF'!$A:A,'Stammdaten HF'!$F:F)=\"\",\"\",LOOKUP($A6,'Stammdaten HF'!$A:A,'Stammdaten HF'!$F:F))","v":"VfH Ilvesheim"},"G","G",{"$f":"INDEX(Organisation!$E$28:$E$58,MATCH(D6,Organisation!$C$26:$C$56,))","v":11},144,"J",false,"J","N","J",80,{"$f":"INDEX(Organisation!$D$26:$D$56,MATCH(D6,Organisation!$C$26:$C$56,))","v":150},"best"]
[6,"  maier\n","\n",{"$f":"IF(LOOKUP($A7,'Stammdaten HF'!$A:A,'Stammdaten HF'!$C:C)=\"\",\"\",LOOKUP($A7,'Stammdaten HF'!$A:A,'Stammdaten HF'!$C:C))","v":"SK"},null,null,null,null,"","",{"$f":"IF(LOOKUP($A7,'Stammdaten HF'!$A:A,'Stammdaten HF'!$D:D)=\"\",\"\",LOOKUP($A7,'Stammdaten HF'!$A:A,'Stammdaten HF'!$D:D))","v":"maier"},{"$f":"IF(LOOKUP($A7,'Stammdaten HF'!$A:A,'Stammdaten HF'!$E:E)=\"\",\"\",LOOKUP($A7,'Stammdaten HF'!$A:A,'Stammdaten HF'!$E:E))","v":""},{"$f":"IF(LOOKUP($A7,'Stammdaten HF'!$A:A,'Stammdaten HF'!$Q:Q)=\"\",\"\",LOOKUP($A7,'Stammdaten HF'!$A:A,'Stammdaten HF'!$Q:Q))","v":""},{"$f":"IF(LOOKUP($A7,'Stammdaten HF'!$A:A,'Stammdaten HF'!$R:R)=\"\",\"\",LOOKUP($A7,'Stammdaten HF'!$A:A,'Stammdaten HF'!$R:R))","v":""},{"$f":"IF(LOOKUP($A7,'Stammdaten HF'!$A:A,'Stammdaten HF'!$F:F)=\"\",\"\",LOOKUP($A7,'Stammdaten HF'!$A:A,'Stammdaten HF'!$F:F))","v":""},"V","best",{"$f":"INDEX(Organisation!$E$28:$E$58,MATCH(D7,Organisation!$C$26:$C$56,))","v":10},0,"",false,"J","J","J",{"$error":"#DIV/0!"},{"$f":"INDEX(Organisation!$D$26:$D$56,MATCH(D7,Organisation!$C$26:$C$56,))","v":0},""]
[7,"  \n","\n",{"$f":"IF(LOOKUP($A8,'Stammdaten HF'!$A:A,'Stammdaten HF'!$C:C)=\"\",\"\",LOOKUP($A8,'Stammdaten HF'!$A:A,'Stammdaten HF'!$C:C))","v":""},null,null,null,null,"","",{"$f":"IF(LOOKUP($A8,'Stammdaten HF'!$A:A,'Stammdaten HF'!$D:D)=\"\",\"\",LOOKUP($A8,'Stammdaten HF'!$A:A,'Stammdaten HF'!$D:D))","v":""},{"$f":"IF(LOOKUP($A8,'Stammdaten HF'!$A:A,'Stammdaten HF'!$E:E)=\"\",\"\",LOOKUP($A8,'Stammdaten HF'!$A:A,'Stammdaten HF'!$E:E))","v":""},{"$f":"IF(LOOKUP($A8,'Stammdaten HF'!$A:A,'Stammdaten HF'!$Q:Q)=\"\",\"\",LOOKUP($A8,'Stammdaten HF'!$A:A,'Stammdaten HF'!$Q:Q))","v":""},{"$f":"IF(LOOKUP($A8,'Stammdaten HF'!$A:A,'Stammdaten HF'!$R:R)=\"\",\"\",LOOKUP($A8,'Stammdaten HF'!$A:A,'Stammdaten HF'!$R:R))","v":""},{"$f":"IF(LOOKUP($A8,'Stammdaten HF'!$A:A,'Stammdaten HF'!$F:F)=\"\",\"\",LOOKUP($A8,'Stammdaten HF'!$A:A,'Stammdaten HF'!$F:F))","v":""},{"$error":"#N/A"},"",{"$f":"INDEX(Organisation!$E$28:$E$58,MATCH(D8,Organisation!$C$26:$C$56,))","v":{"$error":"#N/A"}},{"$error":"#N/A"},"",false,"J","J","J",{"$error":"#N/A"},{"$f":"INDEX(Organisation!$D$26:$D$56,MATCH(D8,Organisation!$C$26:$C$56,))","v":{"$error":"#N/A"}},""]
[8,"  \n","\n",{"$f":"IF(LOOKUP($A9,'Stammdaten HF'!$A:A,'Stammdaten HF'!$C:C)=\"\",\"\",LOOKUP($A9,'Stammdaten HF'!$A:A,'Stammdaten HF'!$C:C))","v":""},null,null,null,null,"","",{"$f":"IF(LOOKUP($A9,'Stammdaten HF'!$A:A,'Stammdaten HF'!$D:D)=\"\",\"\",LOOKUP($A9,'Stammdaten HF'!$A:A,'Stammdaten HF'!$D:D))","v":""},{"$f":"IF(LOOKUP($A9,'Stammdaten HF'!$A:A,'Stammdaten HF'!$E:E)=\"\",\"\",LOOKUP($A9,'Stammdaten HF'!$A:A,'Stammdaten HF'!$E:E))","v":""},{"$f":"IF(LOOKUP($A9,'Stammdaten HF'!$A:A,'Stammdaten HF'!$Q:Q)=\"\",\"\",LOOKUP($A9,'Stammdaten HF'!$A:A,'Stammdaten HF'!$Q:Q))","v":""},{"$f":"IF(LOOKUP($A9,'Stammdaten HF'!$A:A,'Stammdaten HF'!$R:R)=\"\",\"\",LOOKUP($A9,'Stammdaten HF'!$A:A,'Stammdaten HF'!$R:R))","v":""},{"$f":"IF(LOOKUP($A9,'Stammdaten HF'!$A:A,'Stammdaten HF'!$F:F)=\"\",\"\",LOOKUP($A9,'Stammdaten HF'!$A:A,'Stammdaten HF'!$F:F))","v":""},{"$error":"#N/A"},"",{"$f":"INDEX(Organisation!$E$28:$E$58,MATCH(D9,Organisation!$C$26:$C$56,))","v":{"$error":"#N/A"}},{"$error":"#N/A"},"",false,"J","J","J",{"$error":"#N/A"},{"$f":"INDEX(Organisation!$D$26:$D$56,MATCH(D9,Organisation!$C$26:$C$56,))","v":{"$error":"#N/A"}},""]
[9,"  \n","\n",{"$f":"IF(LOOKUP($A10,'Stammdaten HF'!$A:A,'Stammdaten HF'!$C:C)=\"\",\"\",LOOKUP($A10,'Stammdaten HF'!$A:A,'Stammdaten HF'!$C:C))","v":""},null,null,null,null,"","",{"$f":"IF(LOOKUP($A10,'Stammdaten HF'!$A:A,'Stammdaten HF'!$D:D)=\"\",\"\",LOOKUP($A10,'Stammdaten HF'!$A:A,'Stammdaten HF'!$D:D))","v":""},{"$f":"IF(LOOKUP($A10,'Stammdaten HF'!$A:A,'Stammdaten HF'!$E:E)=\"\",\"\",LOOKUP($A10,'Stammdaten HF'!$A:A,'Stammdaten HF'!$E:E))","v":""},{"$f":"IF(LOOKUP($A10,'Stammdaten HF'!$A:A,'Stammdaten HF'!$Q:Q)=\"\",\"\",LOOKUP($A10,'Stammdaten HF'!$A:A,'Stammdaten HF'!$Q:Q))","v":""},{"$f":"IF(LOOKUP($A10,'Stammdaten HF'!$A:A,'Stammdaten HF'!$R:R)=\"\",\"\",LOOKUP($A10,'Stammdaten HF'!$A:A,'Stammdaten HF'!$R:R))","v":""},{"$f":"IF(LOOKUP($A10,'Stammdaten HF'!$A:A,'Stammdaten HF'!$F:F)=\"\",\"\",LOOKUP($A10,'Stammdaten HF'!$A:A,'Stammdaten HF'!$F:F))","v":""},{"$error":"#N/A"},"",{"$f":"INDEX(Organisation!$E$28:$E$58,MATCH(D10,Organisation!$C$26:$C$56,))","v":{"$error":"#N/A"}},{"$error":"#N/A"},"",false,"J","J","J",{"$error":"#N/A"},{"$f":"INDEX(Organisation!$D$26:$D$56,MATCH(D10,Organisation!$C$26:$C$56,))","v":{"$error":"#N/A"}},""]
[10,"  \n","\n",{"$f":"IF(LOOKUP($A11,'Stammdaten HF'!$A:A,'Stammdaten HF'!$C:C)=\"\",\"\",LOOKUP($A11,'Stammdaten HF'!$A:A,'Stammdaten HF'!$C:C))","v":""},null,null,null,null,"","",{"$f":"IF(LOOKUP($A11,'Stammdaten HF'!$A:A,'Stammdaten HF'!$D:D)=\"\",\"\",LOOKUP($A11,'Stammdaten HF'!$A:A,'Stammdaten HF'!$D:D))","v":""},{"$f":"IF(LOOKUP($A11,'Stammdaten HF'!$A:A,'Stammdaten HF'!$E:E)=\"\",\"\",LOOKUP($A11,'Stammdaten HF'!$A:A,'Stammdaten HF'!$E:E))","v":""},{"$f":"IF(LOOKUP($A11,'Stammdaten HF'!$A:A,'Stammdaten HF'!$Q:Q)=\"\",\"\",LOOKUP($A11,'Stammdaten HF'!$A:A,'Stammdaten HF'!$Q:Q))","v":""},{"$f":"IF(LOOKUP($A11,'Stammdaten HF'!$A:A,'Stammdaten HF'!$R:R)=\"\",\"\",LOOKUP($A11,'Stammdaten HF'!$A:A,'Stammdaten HF'!$R:R))","v":""},{"$f":"IF(LOOKUP($A11,'Stammdaten HF'!$A:A,'Stammdaten HF'!$F:F)=\"\",\"\",LOOKUP($A11,'Stammdaten HF'!$A:A,'Stammdaten HF'!$F:F))","v":""},{"$error":"#N/A"},"",{"$f":"INDEX(Organisation!$E$28:$E$58,MATCH(D11,Organisation!$C$26:$C$56,))","v":{"$error":"#N/A"}},{"$error":"#N/A"},"",false,"J","J","J",{"$error":"#N/A"},{"$f":"INDEX(Organisation!$D$26:$D$56,MATCH(D11,Organisation!$C$26:$C$56,))","v":{"$error":"#N/A"}},""]
[11,"  \n","\n",{"$f":"IF(LOOKUP($A12,'Stammdaten HF'!$A:A,'Stammdaten HF'!$C:C)=\"\",\"\",LOOKUP($A12,'Stammdaten HF'!$A:A,'Stammdaten HF'!$C:C))","v":""},null,null,null,null,"","",{"$f":"IF(LOOKUP($A12,'Stammdaten HF'!$A:A,'Stammdaten HF'!$D:D)=\"\",\"\",LOOKUP($A12,'Stammdaten HF'!$A:A,'Stammdaten HF'!$D:D))","v":""},{"$f":"IF(LOOKUP($A12,'Stammdaten HF'!$A:A,'Stammdaten HF'!$E:E)=\"\",\"\",LOOKUP($A12,'Stammdaten HF'!$A:A,'Stammdaten HF'!$E:E))","v":""},{"$f":"IF(LOOKUP($A12,'Stammdaten HF'!$A:A,'Stammdaten HF'!$Q:Q)=\"\",\"\",LOOKUP($A12,'Stammdaten HF'!$A:A,'Stammdaten HF'!$Q:Q))","v":""},{"$f":"IF(LOOKUP($A12,'Stammdaten HF'!$A:A,'Stammdaten HF'!$R:R)=\"\",\"\",LOOKUP($A12,'Stammdaten HF'!$A:A,'Stammdaten HF'!$R:R))","v":""},{"$f":"IF(LOOKUP($A12,'Stammdaten HF'!$A:A,'Stammdaten HF'!$F:F)=\"\",\"\",LOOKUP($A12,'Stammdaten HF'!$A:A,'Stammdaten HF'!$F:F))","v":""},{"$error":"#N/A"},"",{"$f":"INDEX(Organisation!$E$28:$E$58,MATCH(D12,Organisation!$C$26:$C$56,))","v":{"$error":"#N/A"}},{"$error":"#N/A"},"",false,"J","J","J",{"$error":"#N/A"},{"$f":"INDEX(Organisation!$D$26:$D$56,MATCH(D12,Organisation!$C$26:$C$56,))","v":{"$error":"#N/A"}},""]
[12,"  \n","\n",{"$f":"IF(LOOKUP($A13,'Stammdaten HF'!$A:A,'Stammdaten HF'!$C:C)=\"\",\"\",LOOKUP($A13,'Stammdaten HF'!$A:A,'Stammdaten HF'!$C:C))","v":""},null,null,null,null,"","",{"$f":"IF(LOOKUP($A13,'Stammdaten HF'!$A:A,'Stammdaten HF'!$D:D)=\"\",\"\",LOOKUP($A13,'Stammdaten HF'!$A:A,'Stammdaten HF'!$D:D))","v":""},{"$f":"IF(LOOKUP($A13,'Stammdaten HF'!$A:A,'Stammdaten HF'!$E:E)=\"\",\"\",LOOKUP($A13,'Stammdaten HF'!$A:A,'Stammdaten HF'!$E:E))","v":""},{"$f":"IF(LOOKUP($A13,'Stammdaten HF'!$A:A,'Stammdaten HF'!$Q:Q)=\"\",\"\",LOOKUP($A13,'Stammdaten HF'!$A:A,'Stammdaten HF'!$Q:Q))","v":""},{"$f":"IF(LOOKUP($A13,'Stammdaten HF'!$A:A,'Stammdaten HF'!$R:R)=\"\",\"\",LOOKUP($A13,'Stammdaten HF'!$A:A,'Stammdaten HF'!$R:R))","v":""},{"$f":"IF(LOOKUP($A13,'Stammdaten HF'!$A:A,'Stammdaten HF'!$F:F)=\"\",\"\",LOOKUP($A13,'Stammdaten HF'!$A:A,'Stammdaten HF'!$F:F))","v":""},{"$error":"#N/A"},"",{"$f":"INDEX(Organisation!$E$28:$E$58,MATCH(D13,Organisation!$C$26:$C$56,))","v":{"$error":"#N/A"}},{"$error":"#N/A"},"",false,"J","J","J",{"$error":"#N/A"},{"$f":"INDEX(Organisation!$D$26:$D$56,MATCH(D13,Organisation!$C$26:$C$56,))","v":{"$error":"#N/A"}},""]
[13,"  \n","\n",{"$f":"IF(LOOKUP($A14,'Stammdaten HF'!$A:A,'Stammdaten HF'!$C:C)=\"\",\"\",LOOKUP($A14,'Stammdaten HF'!$A:A,'Stammdaten HF'!$C:C))","v":""},null,null,null,null,"","",{"$f":"IF(LOOKUP($A14,'Stammdaten HF'!$A:A,'Stammdaten HF'!$D:D)=\"\",\"\",LOOKUP($A14,'Stammdaten HF'!$A:A,'Stammdaten HF'!$D:D))","v":""},{"$f":"IF(LOOKUP($A14,'Stammdaten HF'!$A:A,'Stammdaten HF'!$E:E)=\"\",\"\",LOOKUP($A14,'Stammdaten HF'!$A:A,'Stammdaten HF'!$E:E))","v":""},{"$f":"IF(LOOKUP($A14,'Stammdaten HF'!$A:A,'Stammdaten HF'!$Q:Q)=\"\",\"\",LOOKUP($A14,'Stammdaten HF'!$A:A,'Stammdaten HF'!$Q:Q))","v":""},{"$f":"IF(LOOKUP($A14,'Stammdaten HF'!$A:A,'Stammdaten HF'!$R:R)=\"\",\"\",LOOKUP($A14,'Stammdaten HF'!$A:A,'Stammdaten HF'!$R:R))","v":""},{"$f":"IF(LOOKUP($A14,'Stammdaten HF'!$A:A,'Stammdaten HF'!$F:F)=\"\",\"\",LOOKUP($A14,'Stammdaten HF'!$A:A,'Stammdaten HF'!$F:F))","v":""},{"$error":"#N/A"},"",{"$f":"INDEX(Organisation!$E$28:$E$58,MATCH(D14,Organisation!$C$26:$C$56,))","v":{"$error":"#N/A"}},{"$error":"#N/A"},"",false,"J","J","J",{"$error":"#N/A"},{"$f":"INDEX(Organisation!$D$26:$D$56,MATCH(D14,Organisation!$C$26:$C$56,))","v":{"$error":"#N/A"}},""]
[14,"  \n","\n",{"$f":"IF(LOOKUP($A15,'Stammdaten HF'!$A:A,'Stammdaten HF'!$C:C)=\"\",\"\",LOOKUP($A15,'Stammdaten HF'!$A:A,'Stammdaten HF'!$C:C))","v":""},null,null,null,null,"","",{"$f":"IF(LOOKUP($A15,'Stammdaten HF'!$A:A,'Stammdaten HF'!$D:D)=\"\",\"\",LOOKUP($A15,'Stammdaten HF'!$A:A,'Stammdaten HF'!$D:D))","v":""},{"$f":"IF(LOOKUP($A15,'Stammdaten HF'!$A:A,'Stammdaten HF'!$E:E)=\"\",\"\",LOOKUP($A15,'Stammdaten HF'!$A:A,'Stammdaten HF'!$E:E))","v":""},{"$f":"IF(LOOKUP($A15,'Stammdaten HF'!$A:A,'Stammdaten HF'!$Q:Q)=\"\",\"\",LOOKUP($A15,'Stammdaten HF'!$A:A,'Stammdaten HF'!$Q:Q))","v":""},{"$f":"IF(LOOKUP($A15,'Stammdaten HF'!$A:A,'Stammdaten HF'!$R:R)=\"\",\"\",LOOKUP($A15,'Stammdaten HF'!$A:A,'Stammdaten HF'!$R:R))","v":""},{"$f":"IF(LOOKUP($A15,'Stammdaten HF'!$A:A,'Stammdaten HF'!$F:F)=\"\",\"\",LOOKUP($A15,'Stammdaten HF'!$A:A,'Stammdaten HF'!$F:F))","v":""},{"$error":"#N/A"},"",{"$f":"INDEX(Organisation!$E$28:$E$58,MATCH(D15,Organisation!$C$26:$C$56,))","v":{"$error":"#N/A"}},{"$error":"#N/A"},"",false,"J","J","J",{"$error":"#N/A"},{"$f":"INDEX(Organisation!$D$26:$D$56,MATCH(D15,Organisation!$C$26:$C$56,))","v":{"$error":"#N/A"}},""]
[15,"  \n","\n",{"$f":"IF(LOOKUP($A16,'Stammdaten HF'!$A:A,'Stammdaten HF'!$C:C)=\"\",\"\",LOOKUP($A16,'Stammdaten HF'!$A:A,'Stammdaten HF'!$C:C))","v":""},null,null,null,null,"","",{"$f":"IF(LOOKUP($A16,'Stammdaten HF'!$A:A,'Stammdaten HF'!$D:D)=\"\",\"\",LOOKUP($A16,'Stammdaten HF'!$A:A,'Stammdaten HF'!$D:D))","v":""},{"$f":"IF(LOOKUP($A16,'Stammdaten HF'!$A:A,'Stammdaten HF'!$E:E)=\"\",\"\",LOOKUP($A16,'Stammdaten HF'!$A:A,'Stammdaten HF'!$E:E))","v":""},{"$f":"IF(LOOKUP($A16,'Stammdaten HF'!$A:A,'Stammdaten HF'!$Q:Q)=\"\",\"\",LOOKUP($A16,'Stammdaten HF'!$A:A,'Stammdaten HF'!$Q:Q))","v":""},{"$f":"IF(LOOKUP($A16,'Stammdaten HF'!$A:A,'Stammdaten HF'!$R:R)=\"\",\"\",LOOKUP($A16,'Stammdaten HF'!$A:A,'Stammdaten HF'!$R:R))","v":""},{"$f":"IF(LOOKUP($A16,'Stammdaten HF'!$A:A,'Stammdaten HF'!$F:F)=\"\",\"\",LOOKUP($A16,'Stammdaten HF'!$A:A,'Stammdaten HF'!$F:F))","v":""},{"$error":"#N/A"},"",{"$f":"INDEX(Organisation!$E$28:$E$58,MATCH(D16,Organisation!$C$26:$C$56,))","v":{"$error":"#N/A"}},{"$error":"#N/A"},"",false,"J","J","J",{"$error":"#N/A"},{"$f":"INDEX(Organisation!$D$26:$D$56,MATCH(D16,Organisation!$C$26:$C$56,))","v":{"$error":"#N/A"}},""]
[16,"  \n","\n",{"$f":"IF(LOOKUP($A17,'Stammdaten HF'!$A:A,'Stammdaten HF'!$C:C)=\"\",\"\",LOOKUP($A17,'Stammdaten HF'!$A:A,'Stammdaten HF'!$C:C))","v":""},null,null,null,null,"","",{"$f":"IF(LOOKUP($A17,'Stammdaten HF'!$A:A,'Stammdaten HF'!$D:D)=\"\",\"\",LOOKUP($A17,'Stammdaten HF'!$A:A,'Stammdaten HF'!$D:D))","v":""},{"$f":"IF(LOOKUP($A17,'Stammdaten HF'!$A:A,'Stammdaten HF'!$E:E)=\"\",\"\",LOOKUP($A17,'Stammdaten HF'!$A:A,'Stammdaten HF'!$E:E))","v":""},{"$f":"IF(LOOKUP($A17,'Stammdaten HF'!$A:A,'Stammdaten HF'!$Q:Q)=\"\",\"\",LOOKUP($A17,'Stammdaten HF'!$A:A,'Stammdaten HF'!$Q:Q))","v":""},{"$f":"IF(LOOKUP($A17,'Stammdaten HF'!$A:A,'Stammdaten HF'!$R:R)=\"\",\"\",LOOKUP($A17,'Stammdaten HF'!$A:A,'Stammdaten HF'!$R:R))","v":""},{"$f":"IF(LOOKUP($A17,'Stammdaten HF'!$A:A,'Stammdaten HF'!$F:F)=\"\",\"\",LOOKUP($A17,'Stammdaten HF'!$A:A,'Stammdaten HF'!$F:F))","v":""},{"$error":"#N/A"},"",{"$f":"INDEX(Organisation!$E$28:$E$58,MATCH(D17,Organisation!$C$26:$C$56,))","v":{"$error":"#N/A"}},{"$error":"#N/A"},"",false,"J","J","J",{"$error":"#N/A"},{"$f":"INDEX(Organisation!$D$26:$D$56,MATCH(D17,Organisation!$C$26:$C$56,))","v":{"$error":"#N/A"}},""]
[17,"  \n","\n",{"$f":"IF(LOOKUP($A18,'Stammdaten HF'!$A:A,'Stammdaten HF'!$C:C)=\"\",\"\",LOOKUP($A18,'Stammdaten HF'!$A:A,'Stammdaten HF'!$C:C))","v":""},null,null,null,null,"","",{"$f":"IF(LOOKUP($A18,'Stammdaten HF'!$A:A,'Stammdaten HF'!$D:D)=\"\",\"\",LOOKUP($A18,'Stammdaten HF'!$A:A,'Stammdaten HF'!$D:D))","v":""},{"$f":"IF(LOOKUP($A18,'Stammdaten HF'!$A:A,'Stammdaten HF'!$E:E)=\"\",\"\",LOOKUP($A18,'Stammdaten HF'!$A:A,'Stammdaten HF'!$E:E))","v":""},{"$f":"IF(LOOKUP($A18,'Stammdaten HF'!$A:A,'Stammdaten HF'!$Q:Q)=\"\",\"\",LOOKUP($A18,'Stammdaten HF'!$A:A,'Stammdaten HF'!$Q:Q))","v":""},{"$f":"IF(LOOKUP($A18,'Stammdaten HF'!$A:A,'Stammdaten HF'!$R:R)=\"\",\"\",LOOKUP($A18,'Stammdaten HF'!$A:A,'Stammdaten HF'!$R:R))","v":""},{"$f":"IF(LOOKUP($A18,'Stammdaten HF'!$A:A,'Stammdaten HF'!$F:F)=\"\",\"\",LOOKUP($A18,'Stammdaten HF'!$A:A,'Stammdaten HF'!$F:F))","v":""},{"$error":"#N/A"},"",{"$f":"INDEX(Organisation!$E$28:$E$58,MATCH(D18,Organisation!$C$26:$C$56,))","v":{"$error":"#N/A"}},{"$error":"#N/A"},{"$f":"IF(I18=\"\",\"\",IF(Z18=300,IF(OR(E18<70,F18<70,G18<70),\"N\",\"J\"),\"J\"))","v":""},false,"J","J","J",{"$error":"#N/A"},{"$f":"INDEX(Organisation!$D$26:$D$56,MATCH(D18,Organisation!$C$26:$C$56,))","v":{"$error":"#N/A"}},""]
[18,"  \n","\n",{"$f":"IF(LOOKUP($A19,'Stammdaten HF'!$A:A,'Stammdaten HF'!$C:C)=\"\",\"\",LOOKUP($A19,'Stammdaten HF'!$A:A,'Stammdaten HF'!$C:C))","v":""},null,null,null,null,"","",{"$f":"IF(LOOKUP($A19,'Stammdaten HF'!$A:A,'Stammdaten HF'!$D:D)=\"\",\"\",LOOKUP($A19,'Stammdaten HF'!$A:A,'Stammdaten HF'!$D:D))","v":""},{"$f":"IF(LOOKUP($A19,'Stammdaten HF'!$A:A,'Stammdaten HF'!$E:E)=\"\",\"\",LOOKUP($A19,'Stammdaten HF'!$A:A,'Stammdaten HF'!$E:E))","v":""},{"$f":"IF(LOOKUP($A19,'Stammdaten HF'!$A:A,'Stammdaten HF'!$Q:Q)=\"\",\"\",LOOKUP($A19,'Stammdaten HF'!$A:A,'Stammdaten HF'!$Q:Q))","v":""},{"$f":"IF(LOOKUP($A19,'Stammdaten HF'!$A:A,'Stammdaten HF'!$R:R)=\"\",\"\",LOOKUP($A19,'Stammdaten HF'!$A:A,'Stammdaten HF'!$R:R))","v":""},{"$f":"IF(LOOKUP($A19,'Stammdaten HF'!$A:A,'Stammdaten HF'!$F:F)=\"\",\"\",LOOKUP($A19,'Stammdaten HF'!$A:A,'Stammdaten HF'!$F:F))","v":""},{"$error":"#N/A"},"",{"$f":"INDEX(Organisation!$E$28:$E$58,MATCH(D19,Organisation!$C$26:$C$56,))","v":{"$error":"#N/A"}},{"$error":"#N/A"},"",false,"J","J","J",{"$error":"#N/A"},{"$f":"INDEX(Organisation!$D$26:$D$56,MATCH(D19,Organisation!$C$26:$C$56,))","v":{"$error":"#N/A"}},""]
[19,"  \n","\n",{"$f":"IF(LOOKUP($A20,'Stammdaten HF'!$A:A,'Stammdaten HF'!$C:C)=\"\",\"\",LOOKUP($A20,'Stammdaten HF'!$A:A,'Stammdaten HF'!$C:C))","v":""},null,null,null,null,"","",{"$f":"IF(LOOKUP($A20,'Stammdaten HF'!$A:A,'Stammdaten HF'!$D:D)=\"\",\"\",LOOKUP($A20,'Stammdaten HF'!$A:A,'Stammdaten HF'!$D:D))","v":""},{"$f":"IF(LOOKUP($A20,'Stammdaten HF'!$A:A,'Stammdaten HF'!$E:E)=\"\",\"\",LOOKUP($A20,'Stammdaten HF'!$A:A,'Stammdaten HF'!$E:E))","v":""},{"$f":"IF(LOOKUP($A20,'Stammdaten HF'!$A:A,'Stammdaten HF'!$Q:Q)=\"\",\"\",LOOKUP($A20,'Stammdaten HF'!$A:A,'Stammdaten HF'!$Q:Q))","v":""},{"$f":"IF(LOOKUP($A20,'Stammdaten HF'!$A:A,'Stammdaten HF'!$R:R)=\"\",\"\",LOOKUP($A20,'Stammdaten HF'!$A:A,'Stammdaten HF'!$R:R))","v":""},{"$f":"IF(LOOKUP($A20,'Stammdaten HF'!$A:A,'Stammdaten HF'!$F:F)=\"\",\"\",LOOKUP($A20,'Stammdaten HF'!$A:A,'Stammdaten HF'!$F:F))","v":""},{"$error":"#N/A"},{"$f":"IF(D20=\"\",\"\",IF(OR(D20=\"BH\",D20=\"BH/SK\",D20=\"SK\"),IF(I20>=42,\"best\",\"nb\"),IF(D20=\"Team-Test\",IF(I20<80,\"nb\",P20),IF(OR(D20=\"IFH 1\",D20=\"IFH 2\", D20=\"GPr 3\",D20= \"GPr 2\",D20= \"GPr 1\", D20=\"IGP FH\"),P20,IF(T20=\"J\",P20,\"mgh\")))))","v":""},{"$f":"INDEX(Organisation!$E$28:$E$58,MATCH(D20,Organisation!$C$26:$C$56,))","v":{"$error":"#N/A"}},{"$error":"#N/A"},"",false,null,null,null,null,{"$f":"INDEX(Organisation!$D$26:$D$56,MATCH(D20,Organisation!$C$26:$C$56,))","v":{"$error":"#N/A"}},""]
[20,"  \n","\n",{"$f":"IF(LOOKUP($A21,'Stammdaten HF'!$A:A,'Stammdaten HF'!$C:C)=\"\",\"\",LOOKUP($A21,'Stammdaten HF'!$A:A,'Stammdaten HF'!$C:C))","v":""},null,null,null,null,"","",{"$f":"IF(LOOKUP($A21,'Stammdaten HF'!$A:A,'Stammdaten HF'!$D:D)=\"\",\"\",LOOKUP($A21,'Stammdaten HF'!$A:A,'Stammdaten HF'!$D:D))","v":""},{"$f":"IF(LOOKUP($A21,'Stammdaten HF'!$A:A,'Stammdaten HF'!$E:E)=\"\",\"\",LOOKUP($A21,'Stammdaten HF'!$A:A,'Stammdaten HF'!$E:E))","v":""},{"$f":"IF(LOOKUP($A21,'Stammdaten HF'!$A:A,'Stammdaten HF'!$Q:Q)=\"\",\"\",LOOKUP($A21,'Stammdaten HF'!$A:A,'Stammdaten HF'!$Q:Q))","v":""},{"$f":"IF(LOOKUP($A21,'Stammdaten HF'!$A:A,'Stammdaten HF'!$R:R)=\"\",\"\",LOOKUP($A21,'Stammdaten HF'!$A:A,'Stammdaten HF'!$R:R))","v":""},{"$f":"IF(LOOKUP($A21,'Stammdaten HF'!$A:A,'Stammdaten HF'!$F:F)=\"\",\"\",LOOKUP($A21,'Stammdaten HF'!$A:A,'Stammdaten HF'!$F:F))","v":""},{"$error":"#N/A"},"",{"$f":"INDEX(Organisation!$E$28:$E$58,MATCH(D21,Organisation!$C$26:$C$56,))","v":{"$error":"#N/A"}},{"$error":"#N/A"},"",false,null,null,null,null,{"$f":"INDEX(Organisation!$D$26:$D$56,MATCH(D21,Organisation!$C$26:$C$56,))","v":{"$error":"#N/A"}},""]
[21,"  \n","\n",{"$f":"IF(LOOKUP($A22,'Stammdaten HF'!$A:A,'Stammdaten HF'!$C:C)=\"\",\"\",LOOKUP($A22,'Stammdaten HF'!$A:A,'Stammdaten HF'!$C:C))","v":""},null,null,null,null,"","",{"$f":"IF(LOOKUP($A22,'Stammdaten HF'!$A:A,'Stammdaten HF'!$D:D)=\"\",\"\",LOOKUP($A22,'Stammdaten HF'!$A:A,'Stammdaten HF'!$D:D))","v":""},{"$f":"IF(LOOKUP($A22,'Stammdaten HF'!$A:A,'Stammdaten HF'!$E:E)=\"\",\"\",LOOKUP($A22,'Stammdaten HF'!$A:A,'Stammdaten HF'!$E:E))","v":""},{"$f":"IF(LOOKUP($A22,'Stammdaten HF'!$A:A,'Stammdaten HF'!$Q:Q)=\"\",\"\",LOOKUP($A22,'Stammdaten HF'!$A:A,'Stammdaten HF'!$Q:Q))","v":""},{"$f":"IF(LOOKUP($A22,'Stammdaten HF'!$A:A,'Stammdaten HF'!$R:R)=\"\",\"\",LOOKUP($A22,'Stammdaten HF'!$A:A,'Stammdaten HF'!$R:R))","v":""},{"$f":"IF(LOOKUP($A22,'Stammdaten HF'!$A:A,'Stammdaten HF'!$F:F)=\"\",\"\",LOOKUP($A22,'Stammdaten HF'!$A:A,'Stammdaten HF'!$F:F))","v":""},{"$error":"#N/A"},"",{"$f":"INDEX(Organisation!$E$28:$E$58,MATCH(D22,Organisation!$C$26:$C$56,))","v":{"$error":"#N/A"}},{"$error":"#N/A"},"",false,null,null,null,null,{"$f":"INDEX(Organisation!$D$26:$D$56,MATCH(D22,Organisation!$C$26:$C$56,))","v":{"$error":"#N/A"}},""]
[22,"  \n","\n",{"$f":"IF(LOOKUP($A23,'Stammdaten HF'!$A:A,'Stammdaten HF'!$C:C)=\"\",\"\",LOOKUP($A23,'Stammdaten HF'!$A:A,'Stammdaten HF'!$C:C))","v":""},null,null,null,null,"","",{"$f":"IF(LOOKUP($A23,'Stammdaten HF'!$A:A,'Stammdaten HF'!$D:D)=\"\",\"\",LOOKUP($A23,'Stammdaten HF'!$A:A,'Stammdaten HF'!$D:D))","v":""},{"$f":"IF(LOOKUP($A23,'Stammdaten HF'!$A:A,'Stammdaten HF'!$E:E)=\"\",\"\",LOOKUP($A23,'Stammdaten HF'!$A:A,'Stammdaten HF'!$E:E))","v":""},{"$f":"IF(LOOKUP($A23,'Stammdaten HF'!$A:A,'Stammdaten HF'!$Q:Q)=\"\",\"\",LOOKUP($A23,'Stammdaten HF'!$A:A,'Stammdaten HF'!$Q:Q))","v":""},{"$f":"IF(LOOKUP($A23,'Stammdaten HF'!$A:A,'Stammdaten HF'!$R:R)=\"\",\"\",LOOKUP($A23,'Stammdaten HF'!$A:A,'Stammdaten HF'!$R:R))","v":""},{"$f":"IF(LOOKUP($A23,'Stammdaten HF'!$A:A,'Stammdaten HF'!$F:F)=\"\",\"\",LOOKUP($A23,'Stammdaten HF'!$A:A,'Stammdaten HF'!$F:F))","v":""},{"$error":"#N/A"},"",{"$f":"INDEX(Organisation!$E$28:$E$58,MATCH(D23,Organisation!$C$26:$C$56,))","v":{"$error":"#N/A"}},{"$error":"#N/A"},"",false,null,null,null,null,{"$f":"INDEX(Organisation!$D$26:$D$56,MATCH(D23,Organisation!$C$26:$C$56,))","v":{"$error":"#N/A"}},""]
[23,"  \n","\n",{"$f":"IF(LOOKUP($A24,'Stammdaten HF'!$A:A,'Stammdaten HF'!$C:C)=\"\",\"\",LOOKUP($A24,'Stammdaten HF'!$A:A,'Stammdaten HF'!$C:C))","v":""},null,null,null,null,"","",{"$f":"IF(LOOKUP($A24,'Stammdaten HF'!$A:A,'Stammdaten HF'!$D:D)=\"\",\"\",LOOKUP($A24,'Stammdaten HF'!$A:A,'Stammdaten HF'!$D:D))","v":""},{"$f":"IF(LOOKUP($A24,'Stammdaten HF'!$A:A,'Stammdaten HF'!$E:E)=\"\",\"\",LOOKUP($A24,'Stammdaten HF'!$A:A,'Stammdaten HF'!$E:E))","v":""},{"$f":"IF(LOOKUP($A24,'Stammdaten HF'!$A:A,'Stammdaten HF'!$Q:Q)=\"\",\"\",LOOKUP($A24,'Stammdaten HF'!$A:A,'Stammdaten HF'!$Q:Q))","v":""},{"$f":"IF(LOOKUP($A24,'Stammdaten HF'!$A:A,'Stammdaten HF'!$R:R)=\"\",\"\",LOOKUP($A24,'Stammdaten HF'!$A:A,'Stammdaten HF'!$R:R))","v":""},{"$f":"IF(LOOKUP($A24,'Stammdaten HF'!$A:A,'Stammdaten HF'!$F:F)=\"\",\"\",LOOKUP($A24,'Stammdaten HF'!$A:A,'Stammdaten HF'!$F:F))","v":""},{"$error":"#N/A"},"",{"$f":"INDEX(Organisation!$E$28:$E$58,MATCH(D24,Organisation!$C$26:$C$56,))","v":{"$error":"#N/A"}},{"$error":"#N/A"},"",false,null,null,null,null,{"$f":"INDEX(Organisation!$D$26:$D$56,MATCH(D24,Organisation!$C$26:$C$56,))","v":{"$error":"#N/A"}},""]
[24,"  \n","\n",{"$f":"IF(LOOKUP($A25,'Stammdaten HF'!$A:A,'Stammdaten HF'!$C:C)=\"\",\"\",LOOKUP($A25,'Stammdaten HF'!$A:A,'Stammdaten HF'!$C:C))","v":""},null,null,null,null,"","",{"$f":"IF(LOOKUP($A25,'Stammdaten HF'!$A:A,'Stammdaten HF'!$D:D)=\"\",\"\",LOOKUP($A25,'Stammdaten HF'!$A:A,'Stammdaten HF'!$D:D))","v":""},{"$f":"IF(LOOKUP($A25,'Stammdaten HF'!$A:A,'Stammdaten HF'!$E:E)=\"\",\"\",LOOKUP($A25,'Stammdaten HF'!$A:A,'Stammdaten HF'!$E:E))","v":""},{"$f":"IF(LOOKUP($A25,'Stammdaten HF'!$A:A,'Stammdaten HF'!$Q:Q)=\"\",\"\",LOOKUP($A25,'Stammdaten HF'!$A:A,'Stammdaten HF'!$Q:Q))","v":""},{"$f":"IF(LOOKUP($A25,'Stammdaten HF'!$A:A,'Stammdaten HF'!$R:R)=\"\",\"\",LOOKUP($A25,'Stammdaten HF'!$A:A,'Stammdaten HF'!$R:R))","v":""},{"$f":"IF(LOOKUP($A25,'Stammdaten HF'!$A:A,'Stammdaten HF'!$F:F)=\"\",\"\",LOOKUP($A25,'Stammdaten HF'!$A:A,'Stammdaten HF'!$F:F))","v":""},{"$error":"#N/A"},"",{"$f":"INDEX(Organisation!$E$28:$E$58,MATCH(D25,Organisation!$C$26:$C$56,))","v":{"$error":"#N/A"}},{"$error":"#N/A"},"",false,null,null,null,null,{"$f":"INDEX(Organisation!$D$26:$D$56,MATCH(D25,Organisation!$C$26:$C$56,))","v":{"$error":"#N/A"}},""]
[25,"  \n","\n",{"$f":"IF(LOOKUP($A26,'Stammdaten HF'!$A:A,'Stammdaten HF'!$C:C)=\"\",\"\",LOOKUP($A26,'Stammdaten HF'!$A:A,'Stammdaten HF'!$C:C))","v":""},null,null,null,null,"","",{"$f":"IF(LOOKUP($A26,'Stammdaten HF'!$A:A,'Stammdaten HF'!$D:D)=\"\",\"\",LOOKUP($A26,'Stammdaten HF'!$A:A,'Stammdaten HF'!$D:D))","v":""},{"$f":"IF(LOOKUP($A26,'Stammdaten HF'!$A:A,'Stammdaten HF'!$E:E)=\"\",\"\",LOOKUP($A26,'Stammdaten HF'!$A:A,'Stammdaten HF'!$E:E))","v":""},{"$f":"IF(LOOKUP($A26,'Stammdaten HF'!$A:A,'Stammdaten HF'!$Q:Q)=\"\",\"\",LOOKUP($A26,'Stammdaten HF'!$A:A,'Stammdaten HF'!$Q:Q))","v":""},{"$f":"IF(LOOKUP($A26,'Stammdaten HF'!$A:A,'Stammdaten HF'!$R:R)=\"\",\"\",LOOKUP($A26,'Stammdaten HF'!$A:A,'Stammdaten HF'!$R:R))","v":""},{"$f":"IF(LOOKUP($A26,'Stammdaten HF'!$A:A,'Stammdaten HF'!$F:F)=\"\",\"\",LOOKUP($A26,'Stammdaten HF'!$A:A,'Stammdaten HF'!$F:F))","v":""},{"$error":"#N/A"},"",{"$f":"INDEX(Organisation!$E$28:$E$58,MATCH(D26,Organisation!$C$26:$C$56,))","v":{"$error":"#N/A"}},{"$error":"#N/A"},"",false,null,null,null,null,{"$f":"INDEX(Organisation!$D$26:$D$56,MATCH(D26,Organisation!$C$26:$C$56,))","v":{"$error":"#N/A"}},""]
[26,"  \n","\n",{"$f":"IF(LOOKUP($A27,'Stammdaten HF'!$A:A,'Stammdaten HF'!$C:C)=\"\",\"\",LOOKUP($A27,'Stammdaten HF'!$A:A,'Stammdaten HF'!$C:C))","v":""},null,null,null,null,"","",{"$f":"IF(LOOKUP($A27,'Stammdaten HF'!$A:A,'Stammdaten HF'!$D:D)=\"\",\"\",LOOKUP($A27,'Stammdaten HF'!$A:A,'Stammdaten HF'!$D:D))","v":""},{"$f":"IF(LOOKUP($A27,'Stammdaten HF'!$A:A,'Stammdaten HF'!$E:E)=\"\",\"\",LOOKUP($A27,'Stammdaten HF'!$A:A,'Stammdaten HF'!$E:E))","v":""},{"$f":"IF(LOOKUP($A27,'Stammdaten HF'!$A:A,'Stammdaten HF'!$Q:Q)=\"\",\"\",LOOKUP($A27,'Stammdaten HF'!$A:A,'Stammdaten HF'!$Q:Q))","v":""},{"$f":"IF(LOOKUP($A27,'Stammdaten HF'!$A:A,'Stammdaten HF'!$R:R)=\"\",\"\",LOOKUP($A27,'Stammdaten HF'!$A:A,'Stammdaten HF'!$R:R))","v":""},{"$f":"IF(LOOKUP($A27,'Stammdaten HF'!$A:A,'Stammdaten HF'!$F:F)=\"\",\"\",LOOKUP($A27,'Stammdaten HF'!$A:A,'Stammdaten HF'!$F:F))","v":""},{"$error":"#N/A"},"",{"$f":"INDEX(Organisation!$E$28:$E$58,MATCH(D27,Organisation!$C$26:$C$56,))","v":{"$error":"#N/A"}},{"$error":"#N/A"},"",false,null,null,null,null,{"$f":"INDEX(Organisation!$D$26:$D$56,MATCH(D27,Organisation!$C$26:$C$56,))","v":{"$error":"#N/A"}},""]
[27,"  \n","\n",{"$f":"IF(LOOKUP($A28,'Stammdaten HF'!$A:A,'Stammdaten HF'!$C:C)=\"\",\"\",LOOKUP($A28,'Stammdaten HF'!$A:A,'Stammdaten HF'!$C:C))","v":""},null,null,null,null,"","",{"$f":"IF(LOOKUP($A28,'Stammdaten HF'!$A:A,'Stammdaten HF'!$D:D)=\"\",\"\",LOOKUP($A28,'Stammdaten HF'!$A:A,'Stammdaten HF'!$D:D))","v":""},{"$f":"IF(LOOKUP($A28,'Stammdaten HF'!$A:A,'Stammdaten HF'!$E:E)=\"\",\"\",LOOKUP($A28,'Stammdaten HF'!$A:A,'Stammdaten HF'!$E:E))","v":""},{"$f":"IF(LOOKUP($A28,'Stammdaten HF'!$A:A,'Stammdaten HF'!$Q:Q)=\"\",\"\",LOOKUP($A28,'Stammdaten HF'!$A:A,'Stammdaten HF'!$Q:Q))","v":""},{"$f":"IF(LOOKUP($A28,'Stammdaten HF'!$A:A,'Stammdaten HF'!$R:R)=\"\",\"\",LOOKUP($A28,'Stammdaten HF'!$A:A,'Stammdaten HF'!$R:R))","v":""},{"$f":"IF(LOOKUP($A28,'Stammdaten HF'!$A:A,'Stammdaten HF'!$F:F)=\"\",\"\",LOOKUP($A28,'Stammdaten HF'!$A:A,'Stammdaten HF'!$F:F))","v":""},{"$error":"#N/A"},"",{"$f":"INDEX(Organisation!$E$28:$E$58,MATCH(D28,Organisation!$C$26:$C$56,))","v":{"$error":"#N/A"}},{"$error":"#N/A"},"",false,null,null,null,null,{"$f":"INDEX(Organisation!$D$26:$D$56,MATCH(D28,Organisation!$C$26:$C$56,))","v":{"$error":"#N/A"}},""]
[28,"  \n","\n",{"$f":"IF(LOOKUP($A29,'Stammdaten HF'!$A:A,'Stammdaten HF'!$C:C)=\"\",\"\",LOOKUP($A29,'Stammdaten HF'!$A:A,'Stammdaten HF'!$C:C))","v":""},null,null,null,null,"","",{"$f":"IF(LOOKUP($A29,'Stammdaten HF'!$A:A,'Stammdaten HF'!$D:D)=\"\",\"\",LOOKUP($A29,'Stammdaten HF'!$A:A,'Stammdaten HF'!$D:D))","v":""},{"$f":"IF(LOOKUP($A29,'Stammdaten HF'!$A:A,'Stammdaten HF'!$E:E)=\"\",\"\",LOOKUP($A29,'Stammdaten HF'!$A:A,'Stammdaten HF'!$E:E))","v":""},{"$f":"IF(LOOKUP($A29,'Stammdaten HF'!$A:A,'Stammdaten HF'!$Q:Q)=\"\",\"\",LOOKUP($A29,'Stammdaten HF'!$A:A,'Stammdaten HF'!$Q:Q))","v":""},{"$f":"IF(LOOKUP($A29,'Stammdaten HF'!$A:A,'Stammdaten HF'!$R:R)=\"\",\"\",LOOKUP($A29,'Stammdaten HF'!$A:A,'Stammdaten HF'!$R:R))","v":""},{"$f":"IF(LOOKUP($A29,'Stammdaten HF'!$A:A,'Stammdaten HF'!$F:F)=\"\",\"\",LOOKUP($A29,'Stammdaten HF'!$A:A,'Stammdaten HF'!$F:F))","v":""},{"$error":"#N/A"},"",{"$f":"INDEX(Organisation!$E$28:$E$58,MATCH(D29,Organisation!$C$26:$C$56,))","v":{"$error":"#N/A"}},{"$error":"#N/A"},"",false,null,null,null,null,{"$f":"INDEX(Organisation!$D$26:$D$56,MATCH(D29,Organisation!$C$26:$C$56,))","v":{"$error":"#N/A"}},""]
[29,"  \n","\n",{"$f":"IF(LOOKUP($A30,'Stammdaten HF'!$A:A,'Stammdaten HF'!$C:C)=\"\",\"\",LOOKUP($A30,'Stammdaten HF'!$A:A,'Stammdaten HF'!$C:C))","v":""},null,null,null,null,"","",{"$f":"IF(LOOKUP($A30,'Stammdaten HF'!$A:A,'Stammdaten HF'!$D:D)=\"\",\"\",LOOKUP($A30,'Stammdaten HF'!$A:A,'Stammdaten HF'!$D:D))","v":""},{"$f":"IF(LOOKUP($A30,'Stammdaten HF'!$A:A,'Stammdaten HF'!$E:E)=\"\",\"\",LOOKUP($A30,'Stammdaten HF'!$A:A,'Stammdaten HF'!$E:E))","v":""},{"$f":"IF(LOOKUP($A30,'Stammdaten HF'!$A:A,'Stammdaten HF'!$Q:Q)=\"\",\"\",LOOKUP($A30,'Stammdaten HF'!$A:A,'Stammdaten HF'!$Q:Q))","v":""},{"$f":"IF(LOOKUP($A30,'Stammdaten HF'!$A:A,'Stammdaten HF'!$R:R)=\"\",\"\",LOOKUP($A30,'Stammdaten HF'!$A:A,'Stammdaten HF'!$R:R))","v":""},{"$f":"IF(LOOKUP($A30,'Stammdaten HF'!$A:A,'Stammdaten HF'!$F:F)=\"\",\"\",LOOKUP($A30,'Stammdaten HF'!$A:A,'Stammdaten HF'!$F:F))","v":""},{"$error":"#N/A"},"",{"$f":"INDEX(Organisation!$E$28:$E$58,MATCH(D30,Organisation!$C$26:$C$56,))","v":{"$error":"#N/A"}},{"$error":"#N/A"},"",false,null,null,null,null,{"$f":"INDEX(Organisation!$D$26:$D$56,MATCH(D30,Organisation!$C$26:$C$56,))","v":{"$error":"#N/A"}},""]
[30,"  \n","\n",{"$f":"IF(LOOKUP($A31,'Stammdaten HF'!$A:A,'Stammdaten HF'!$C:C)=\"\",\"\",LOOKUP($A31,'Stammdaten HF'!$A:A,'Stammdaten HF'!$C:C))","v":""},null,null,null,null,"","",{"$f":"IF(LOOKUP($A31,'Stammdaten HF'!$A:A,'Stammdaten HF'!$D:D)=\"\",\"\",LOOKUP($A31,'Stammdaten HF'!$A:A,'Stammdaten HF'!$D:D))","v":""},{"$f":"IF(LOOKUP($A31,'Stammdaten HF'!$A:A,'Stammdaten HF'!$E:E)=\"\",\"\",LOOKUP($A31,'Stammdaten HF'!$A:A,'Stammdaten HF'!$E:E))","v":""},{"$f":"IF(LOOKUP($A31,'Stammdaten HF'!$A:A,'Stammdaten HF'!$Q:Q)=\"\",\"\",LOOKUP($A31,'Stammdaten HF'!$A:A,'Stammdaten HF'!$Q:Q))","v":""},{"$f":"IF(LOOKUP($A31,'Stammdaten HF'!$A:A,'Stammdaten HF'!$R:R)=\"\",\"\",LOOKUP($A31,'Stammdaten HF'!$A:A,'Stammdaten HF'!$R:R))","v":""},{"$f":"IF(LOOKUP($A31,'Stammdaten HF'!$A:A,'Stammdaten HF'!$F:F)=\"\",\"\",LOOKUP($A31,'Stammdaten HF'!$A:A,'Stammdaten HF'!$F:F))","v":""},{"$error":"#N/A"},"",{"$f":"INDEX(Organisation!$E$28:$E$58,MATCH(D31,Organisation!$C$26:$C$56,))","v":{"$error":"#N/A"}},{"$error":"#N/A"},"",false,null,null,null,null,{"$f":"INDEX(Organisation!$D$26:$D$56,MATCH(D31,Organisation!$C$26:$C$56,))","v":{"$error":"#N/A"}},""]
[31,"  \n","\n",{"$f":"IF(LOOKUP($A32,'Stammdaten HF'!$A:A,'Stammdaten HF'!$C:C)=\"\",\"\",LOOKUP($A32,'Stammdaten HF'!$A:A,'Stammdaten HF'!$C:C))","v":""},null,null,null,null,"","",{"$f":"IF(LOOKUP($A32,'Stammdaten HF'!$A:A,'Stammdaten HF'!$D:D)=\"\",\"\",LOOKUP($A32,'Stammdaten HF'!$A:A,'Stammdaten HF'!$D:D))","v":""},{"$f":"IF(LOOKUP($A32,'Stammdaten HF'!$A:A,'Stammdaten HF'!$E:E)=\"\",\"\",LOOKUP($A32,'Stammdaten HF'!$A:A,'Stammdaten HF'!$E:E))","v":""},{"$f":"IF(LOOKUP($A32,'Stammdaten HF'!$A:A,'Stammdaten HF'!$Q:Q)=\"\",\"\",LOOKUP($A32,'Stammdaten HF'!$A:A,'Stammdaten HF'!$Q:Q))","v":""},{"$f":"IF(LOOKUP($A32,'Stammdaten HF'!$A:A,'Stammdaten HF'!$R:R)=\"\",\"\",LOOKUP($A32,'Stammdaten HF'!$A:A,'Stammdaten HF'!$R:R))","v":""},{"$f":"IF(LOOKUP($A32,'Stammdaten HF'!$A:A,'Stammdaten HF'!$F:F)=\"\",\"\",LOOKUP($A32,'Stammdaten HF'!$A:A,'Stammdaten HF'!$F:F))","v":""},{"$error":"#N/A"},"",{"$f":"INDEX(Organisation!$E$28:$E$58,MATCH(D32,Organisation!$C$26:$C$56,))","v":{"$error":"#N/A"}},{"$error":"#N/A"},"",false,null,null,null,null,{"$f":"INDEX(Organisation!$D$26:$D$56,MATCH(D32,Organisation!$C$26:$C$56,))","v":{"$error":"#N/A"}},""]
[32,"  \n","\n",{"$f":"IF(LOOKUP($A33,'Stammdaten HF'!$A:A,'Stammdaten HF'!$C:C)=\"\",\"\",LOOKUP($A33,'Stammdaten HF'!$A:A,'Stammdaten HF'!$C:C))","v":""},null,null,null,null,"","",{"$f":"IF(LOOKUP($A33,'Stammdaten HF'!$A:A,'Stammdaten HF'!$D:D)=\"\",\"\",LOOKUP($A33,'Stammdaten HF'!$A:A,'Stammdaten HF'!$D:D))","v":""},{"$f":"IF(LOOKUP($A33,'Stammdaten HF'!$A:A,'Stammdaten HF'!$E:E)=\"\",\"\",LOOKUP($A33,'Stammdaten HF'!$A:A,'Stammdaten HF'!$E:E))","v":""},{"$f":"IF(LOOKUP($A33,'Stammdaten HF'!$A:A,'Stammdaten HF'!$Q:Q)=\"\",\"\",LOOKUP($A33,'Stammdaten HF'!$A:A,'Stammdaten HF'!$Q:Q))","v":""},{"$f":"IF(LOOKUP($A33,'Stammdaten HF'!$A:A,'Stammdaten HF'!$R:R)=\"\",\"\",LOOKUP($A33,'Stammdaten HF'!$A:A,'Stammdaten HF'!$R:R))","v":""},{"$f":"IF(LOOKUP($A33,'Stammdaten HF'!$A:A,'Stammdaten HF'!$F:F)=\"\",\"\",LOOKUP($A33,'Stammdaten HF'!$A:A,'Stammdaten HF'!$F:F))","v":""},{"$error":"#N/A"},"",{"$f":"INDEX(Organisation!$E$28:$E$58,MATCH(D33,Organisation!$C$26:$C$56,))","v":{"$error":"#N/A"}},{"$error":"#N/A"},"",false,null,null,null,null,{"$f":"INDEX(Organisation!$D$26:$D$56,MATCH(D33,Organisation!$C$26:$C$56,))","v":{"$error":"#N/A"}},""]
[33,"  \n","\n",{"$f":"IF(LOOKUP($A34,'Stammdaten HF'!$A:A,'Stammdaten HF'!$C:C)=\"\",\"\",LOOKUP($A34,'Stammdaten HF'!$A:A,'Stammdaten HF'!$C:C))","v":""},null,null,null,null,"","",{"$f":"IF(LOOKUP($A34,'Stammdaten HF'!$A:A,'Stammdaten HF'!$D:D)=\"\",\"\",LOOKUP($A34,'Stammdaten HF'!$A:A,'Stammdaten HF'!$D:D))","v":""},{"$f":"IF(LOOKUP($A34,'Stammdaten HF'!$A:A,'Stammdaten HF'!$E:E)=\"\",\"\",LOOKUP($A34,'Stammdaten HF'!$A:A,'Stammdaten HF'!$E:E))","v":""},{"$f":"IF(LOOKUP($A34,'Stammdaten HF'!$A:A,'Stammdaten HF'!$Q:Q)=\"\",\"\",LOOKUP($A34,'Stammdaten HF'!$A:A,'Stammdaten HF'!$Q:Q))","v":""},{"$f":"IF(LOOKUP($A34,'Stammdaten HF'!$A:A,'Stammdaten HF'!$R:R)=\"\",\"\",LOOKUP($A34,'Stammdaten HF'!$A:A,'Stammdaten HF'!$R:R))","v":""},{"$f":"IF(LOOKUP($A34,'Stammdaten HF'!$A:A,'Stammdaten HF'!$F:F)=\"\",\"\",LOOKUP($A34,'Stammdaten HF'!$A:A,'Stammdaten HF'!$F:F))","v":""},{"$error":"#N/A"},"",{"$f":"INDEX(Organisation!$E$28:$E$58,MATCH(D34,Organisation!$C$26:$C$56,))","v":{"$error":"#N/A"}},{"$error":"#N/A"},"",false,null,null,null,null,{"$f":"INDEX(Organisation!$D$26:$D$56,MATCH(D34,Organisation!$C$26:$C$56,))","v":{"$error":"#N/A"}},""]
[34,"  \n","\n",{"$f":"IF(LOOKUP($A35,'Stammdaten HF'!$A:A,'Stammdaten HF'!$C:C)=\"\",\"\",LOOKUP($A35,'Stammdaten HF'!$A:A,'Stammdaten HF'!$C:C))","v":""},null,null,null,null,"","",{"$f":"IF(LOOKUP($A35,'Stammdaten HF'!$A:A,'Stammdaten HF'!$D:D)=\"\",\"\",LOOKUP($A35,'Stammdaten HF'!$A:A,'Stammdaten HF'!$D:D))","v":""},{"$f":"IF(LOOKUP($A35,'Stammdaten HF'!$A:A,'Stammdaten HF'!$E:E)=\"\",\"\",LOOKUP($A35,'Stammdaten HF'!$A:A,'Stammdaten HF'!$E:E))","v":""},{"$f":"IF(LOOKUP($A35,'Stammdaten HF'!$A:A,'Stammdaten HF'!$Q:Q)=\"\",\"\",LOOKUP($A35,'Stammdaten HF'!$A:A,'Stammdaten HF'!$Q:Q))","v":""},{"$f":"IF(LOOKUP($A35,'Stammdaten HF'!$A:A,'Stammdaten HF'!$R:R)=\"\",\"\",LOOKUP($A35,'Stammdaten HF'!$A:A,'Stammdaten HF'!$R:R))","v":""},{"$f":"IF(LOOKUP($A35,'Stammdaten HF'!$A:A,'Stammdaten HF'!$F:F)=\"\",\"\",LOOKUP($A35,'Stammdaten HF'!$A:A,'Stammdaten HF'!$F:F))","v":""},{"$error":"#N/A"},"",{"$f":"INDEX(Organisation!$E$28:$E$58,MATCH(D35,Organisation!$C$26:$C$56,))","v":{"$error":"#N/A"}},{"$error":"#N/A"},"",false,null,null,null,null,{"$f":"INDEX(Organisation!$D$26:$D$56,MATCH(D35,Organisation!$C$26:$C$56,))","v":{"$error":"#N/A"}},""]
[35,"  \n","\n",{"$f":"IF(LOOKUP($A36,'Stammdaten HF'!$A:A,'Stammdaten HF'!$C:C)=\"\",\"\",LOOKUP($A36,'Stammdaten HF'!$A:A,'Stammdaten HF'!$C:C))","v":""},null,null,null,null,"","",{"$f":"IF(LOOKUP($A36,'Stammdaten HF'!$A:A,'Stammdaten HF'!$D:D)=\"\",\"\",LOOKUP($A36,'Stammdaten HF'!$A:A,'Stammdaten HF'!$D:D))","v":""},{"$f":"IF(LOOKUP($A36,'Stammdaten HF'!$A:A,'Stammdaten HF'!$E:E)=\"\",\"\",LOOKUP($A36,'Stammdaten HF'!$A:A,'Stammdaten HF'!$E:E))","v":""},{"$f":"IF(LOOKUP($A36,'Stammdaten HF'!$A:A,'Stammdaten HF'!$Q:Q)=\"\",\"\",LOOKUP($A36,'Stammdaten HF'!$A:A,'Stammdaten HF'!$Q:Q))","v":""},{"$f":"IF(LOOKUP($A36,'Stammdaten HF'!$A:A,'Stammdaten HF'!$R:R)=\"\",\"\",LOOKUP($A36,'Stammdaten HF'!$A:A,'Stammdaten HF'!$R:R))","v":""},{"$f":"IF(LOOKUP($A36,'Stammdaten HF'!$A:A,'Stammdaten HF'!$F:F)=\"\",\"\",LOOKUP($A36,'Stammdaten HF'!$A:A,'Stammdaten HF'!$F:F))","v":""},{"$error":"#N/A"},"",{"$f":"INDEX(Organisation!$E$28:$E$58,MATCH(D36,Organisation!$C$26:$C$56,))","v":{"$error":"#N/A"}},{"$error":"#N/A"},"",false,null,null,null,null,{"$f":"INDEX(Organisation!$D$26:$D$56,MATCH(D36,Organisation!$C$26:$C$56,))","v":{"$error":"#N/A"}},""]
[36,"  \n","\n",{"$f":"IF(LOOKUP($A37,'Stammdaten HF'!$A:A,'Stammdaten HF'!$C:C)=\"\",\"\",LOOKUP($A37,'Stammdaten HF'!$A:A,'Stammdaten HF'!$C:C))","v":""},null,null,null,null,"","",{"$f":"IF(LOOKUP($A37,'Stammdaten HF'!$A:A,'Stammdaten HF'!$D:D)=\"\",\"\",LOOKUP($A37,'Stammdaten HF'!$A:A,'Stammdaten HF'!$D:D))","v":""},{"$f":"IF(LOOKUP($A37,'Stammdaten HF'!$A:A,'Stammdaten HF'!$E:E)=\"\",\"\",LOOKUP($A37,'Stammdaten HF'!$A:A,'Stammdaten HF'!$E:E))","v":""},{"$f":"IF(LOOKUP($A37,'Stammdaten HF'!$A:A,'Stammdaten HF'!$Q:Q)=\"\",\"\",LOOKUP($A37,'Stammdaten HF'!$A:A,'Stammdaten HF'!$Q:Q))","v":""},{"$f":"IF(LOOKUP($A37,'Stammdaten HF'!$A:A,'Stammdaten HF'!$R:R)=\"\",\"\",LOOKUP($A37,'Stammdaten HF'!$A:A,'Stammdaten HF'!$R:R))","v":""},{"$f":"IF(LOOKUP($A37,'Stammdaten HF'!$A:A,'Stammdaten HF'!$F:F)=\"\",\"\",LOOKUP($A37,'Stammdaten HF'!$A:A,'Stammdaten HF'!$F:F))","v":""},{"$error":"#N/A"},"",{"$f":"INDEX(Organisation!$E$28:$E$58,MATCH(D37,Organisation!$C$26:$C$56,))","v":{"$error":"#N/A"}},{"$error":"#N/A"},"",false,null,null,null,null,{"$f":"INDEX(Organisation!$D$26:$D$56,MATCH(D37,Organisation!$C$26:$C$56,))","v":{"$error":"#N/A"}},""]
[null,null,null,null,null,null,null,null,{"$f":"IF(OR(E38=\"\",F38=\"\",G38=\"\"),\"\",SUM(E38,F38,G38))","v":""},{"$f":"IF(I38=\"\",\"\",IF(T38=\"J\",IF(I38>=286,\"V\",IF(I38>=270,\"SG\",IF(I38>=240,\"G\",IF(I38>=210,\"B\",\"M\")))),\"M\"))","v":""},null,null,null,null,null,null,{"$f":"IF(D38=\"\",\"\",IF(OR(D38=\"BH\",D38=\"BH/SK\",D38=\"SK\"),IF(I38>=42,\"best\",\"nb\"),IF(D38=\"Team-Test\",IF(I38<80,\"nb\",P38),IF(T38=\"J\",P38,\"mgh\"))))","v":""},null,null,{"$f":"IF(I38=\"\",\"\",IF(OR(E38<70,F38<70,G38<70),\"N\",\"J\"))","v":""}]
[null,null,null,null,null,null,null,null,null,null,null,null,null,null,null,null,{"$f":"IF(D39=\"\",\"\",IF(OR(D39=\"BH\",D39=\"BH/SK\",D39=\"SK\"),IF(I39>=42,\"best\",\"nb\"),IF(D39=\"Team-Test\",IF(I39<80,\"nb\",P39),IF(T39=\"J\",P39,\"mgh\"))))","v":""}]

{"sheet":"Ergebnis","index":4,"n_rows":40,"n_cols":42,"rows_kept":40,"cut":false,"hidden":false,"merged":[[39,4,39,9],[39,1,39,2]]}
["Nr.","Hundeführer\nVerein","Hund\nRasse","Prf.Stufe","A","B","C","Gesamt","Note","Pl.",null,null,null,null,null,null,null,null,null,null,null,null,null,null,null,null,null,null,null,null,null,null,null,null,null,null,null,null,null,null,null,"Sortziff"]
[{"$f":"Auswertung!A2","v":1},{"$f":"Auswertung!B2","v":"Andreas  Mustermax\nsspv MA"},{"$f":"Auswertung!C2","v":"Axel\nMixy"},{"$f":"Auswertung!D2","v":"IFH 1"},{"$f":"IF(Auswertung!E2=\"\",\"\",Auswertung!E2)","v":84},{"$f":"IF(Auswertung!F2=\"\",\"\",Auswertung!F2)","v":90},{"$f":"IF(Auswertung!G2=\"\",\"\",Auswertung!G2)","v":91},{"$f":"IF(Auswertung!I2=\"\",\"\",Auswertung!I2)","v":265},{"$f":"IF(Auswertung!J2=\"\",\"\",Auswertung!J2)","v":"V"},null,null,null,null,null,null,null,null,null,null,null,null,null,null,null,null,null,null,null,null,null,null,null,null,null,null,null,null,null,null,null,null,{"$f":"Auswertung!R2","v":2}]
[{"$f":"Auswertung!A3","v":2},{"$f":"Auswertung!B3","v":"Marion  Fröhlich\nVfH Ilvesheim"},{"$f":"Auswertung!C3","v":"Trigger\nHollands"},{"$f":"Auswertung!D3","v":"BH/SK"},{"$f":"IF(Auswertung!E3=\"\",\"\",Auswertung!E3)","v":""},{"$f":"IF(Auswertung!F3=\"\",\"\",Auswertung!F3)","v":""},{"$f":"IF(Auswertung!G3=\"\",\"\",Auswertung!G3)","v":""},{"$f":"IF(Auswertung!I3=\"\",\"\",Auswertung!I3)","v":""},{"$f":"IF(Auswertung!J3=\"\",\"\",Auswertung!J3)","v":""},null,null,null,null,null,null,null,null,null,null,null,null,null,null,null,null,null,null,null,null,null,null,null,null,null,null,null,null,null,null,null,null,{"$f":"Auswertung!R3","v":9}]
[{"$f":"Auswertung!A4","v":3},{"$f":"Auswertung!B4","v":"Florian  Hintersee\nHSV Frankenthal"},{"$f":"Auswertung!C4","v":"Fräulein Meier\nMischling"},{"$f":"Auswertung!D4","v":"GPr 2"},{"$f":"IF(Auswertung!E4=\"\",\"\",Auswertung!E4)","v":""},{"$f":"IF(Auswertung!F4=\"\",\"\",Auswertung!F4)","v":88},{"$f":"IF(Auswertung!G4=\"\",\"\",Auswertung!G4)","v":92},{"$f":"IF(Auswertung!I4=\"\",\"\",Auswertung!I4)","v":180},{"$f":"IF(Auswertung!J4=\"\",\"\",Auswertung!J4)","v":"SG"},null,null,null,null,null,null,null,null,null,null,null,null,null,null,null,null,null,null,null,null,null,null,null,null,null,null,null,null,null,null,null,null,{"$f":"Auswertung!R4","v":3}]
[{"$f":"Auswertung!A5","v":4},{"$f":"Auswertung!B5","v":"Kunibert  Hexenmeister\nVdH Eningen"},{"$f":"Auswertung!C5","v":"Eidotter\nEdelmix"},{"$f":"Auswertung!D5","v":"IGP 3"},{"$f":"IF(Auswertung!E5=\"\",\"\",Auswertung!E5)","v":97},{"$f":"IF(Auswertung!F5=\"\",\"\",Auswertung!F5)","v":95},{"$f":"IF(Auswertung!G5=\"\",\"\",Auswertung!G5)","v":93},{"$f":"IF(Auswertung!I5=\"\",\"\",Auswertung!I5)","v":285},{"$f":"IF(Auswertung!J5=\"\",\"\",Auswertung!J5)","v":"SG"},null,null,null,null,null,null,null,null,null,null,null,null,null,null,null,null,null,null,null,null,null,null,null,null,null,null,null,null,null,null,null,null,{"$f":"Auswertung!R5","v":1}]
[{"$f":"Auswertung!A6","v":5},{"$f":"Auswertung!B6","v":"Marion  Fröhlich\nVfH Ilvesheim"},{"$f":"Auswertung!C6","v":"Trigger\nHollands"},{"$f":"Auswertung!D6","v":"Team-Test"},{"$f":"IF(Auswertung!E6=\"\",\"\",Auswertung!E6)","v":""},{"$f":"IF(Auswertung!F6=\"\",\"\",Auswertung!F6)","v":49},{"$f":"IF(Auswertung!G6=\"\",\"\",Auswertung!G6)","v":80},{"$f":"IF(Auswertung!I6=\"\",\"\",Auswertung!I6)","v":129},{"$f":"IF(Auswertung!J6=\"\",\"\",Auswertung!J6)","v":"G"},null,null,null,null,null,null,null,null,null,null,null,null,null,null,null,null,null,null,null,null,null,null,null,null,null,null,null,null,null,null,null,null,{"$f":"Auswertung!R6","v":11}]
[{"$f":"Auswertung!A7","v":6},{"$f":"Auswertung!B7","v":"  maier\n"},{"$f":"Auswertung!C7","v":"\n"},{"$f":"Auswertung!D7","v":"SK"},{"$f":"IF(Auswertung!E7=\"\",\"\",Auswertung!E7)","v":""},{"$f":"IF(Auswertung!F7=\"\",\"\",Auswertung!F7)","v":""},{"$f":"IF(Auswertung!G7=\"\",\"\",Auswertung!G7)","v":""},{"$f":"IF(Auswertung!I7=\"\",\"\",Auswertung!I7)","v":""},{"$f":"IF(Auswertung!J7=\"\",\"\",Auswertung!J7)","v":""},null,null,null,null,null,null,null,null,null,null,null,null,null,null,null,null,null,null,null,null,null,null,null,null,null,null,null,null,null,null,null,null,{"$f":"Auswertung!R7","v":10}]
[{"$f":"Auswertung!A8","v":7},{"$f":"Auswertung!B8","v":"  \n"},{"$f":"Auswertung!C8","v":"\n"},{"$f":"Auswertung!D8","v":""},{"$f":"IF(Auswertung!E8=\"\",\"\",Auswertung!E8)","v":""},{"$f":"IF(Auswertung!F8=\"\",\"\",Auswertung!F8)","v":""},{"$f":"IF(Auswertung!G8=\"\",\"\",Auswertung!G8)","v":""},{"$f":"IF(Auswertung!I8=\"\",\"\",Auswertung!I8)","v":""},{"$f":"IF(Auswertung!J8=\"\",\"\",Auswertung!J8)","v":""},null,null,null,null,null,null,null,null,null,null,null,null,null,null,null,null,null,null,null,null,null,null,null,null,null,null,null,null,null,null,null,null,{"$f":"Auswertung!R8","v":{"$error":"#N/A"}}]
[{"$f":"Auswertung!A9","v":8},{"$f":"Auswertung!B9","v":"  \n"},{"$f":"Auswertung!C9","v":"\n"},{"$f":"Auswertung!D9","v":""},{"$f":"IF(Auswertung!E9=\"\",\"\",Auswertung!E9)","v":""},{"$f":"IF(Auswertung!F9=\"\",\"\",Auswertung!F9)","v":""},{"$f":"IF(Auswertung!G9=\"\",\"\",Auswertung!G9)","v":""},{"$f":"IF(Auswertung!I9=\"\",\"\",Auswertung!I9)","v":""},{"$f":"IF(Auswertung!J9=\"\",\"\",Auswertung!J9)","v":""},null,null,null,null,null,null,null,null,null,null,null,null,null,null,null,null,null,null,null,null,null,null,null,null,null,null,null,null,null,null,null,null,{"$f":"Auswertung!R9","v":{"$error":"#N/A"}}]
[{"$f":"Auswertung!A10","v":9},{"$f":"Auswertung!B10","v":"  \n"},{"$f":"Auswertung!C10","v":"\n"},{"$f":"Auswertung!D10","v":""},{"$f":"IF(Auswertung!E10=\"\",\"\",Auswertung!E10)","v":""},{"$f":"IF(Auswertung!F10=\"\",\"\",Auswertung!F10)","v":""},{"$f":"IF(Auswertung!G10=\"\",\"\",Auswertung!G10)","v":""},{"$f":"IF(Auswertung!I10=\"\",\"\",Auswertung!I10)","v":""},{"$f":"IF(Auswertung!J10=\"\",\"\",Auswertung!J10)","v":""},null,null,null,null,null,null,null,null,null,null,null,null,null,null,null,null,null,null,null,null,null,null,null,null,null,null,null,null,null,null,null,null,{"$f":"Auswertung!R10","v":{"$error":"#N/A"}}]
[{"$f":"Auswertung!A11","v":10},{"$f":"Auswertung!B11","v":"  \n"},{"$f":"Auswertung!C11","v":"\n"},{"$f":"Auswertung!D11","v":""},{"$f":"IF(Auswertung!E11=\"\",\"\",Auswertung!E11)","v":""},{"$f":"IF(Auswertung!F11=\"\",\"\",Auswertung!F11)","v":""},{"$f":"IF(Auswertung!G11=\"\",\"\",Auswertung!G11)","v":""},{"$f":"IF(Auswertung!I11=\"\",\"\",Auswertung!I11)","v":""},{"$f":"IF(Auswertung!J11=\"\",\"\",Auswertung!J11)","v":""},null,null,null,null,null,null,null,null,null,null,null,null,null,null,null,null,null,null,null,null,null,null,null,null,null,null,null,null,null,null,null,null,{"$f":"Auswertung!R11","v":{"$error":"#N/A"}}]
[{"$f":"Auswertung!A12","v":11},{"$f":"Auswertung!B12","v":"  \n"},{"$f":"Auswertung!C12","v":"\n"},{"$f":"Auswertung!D12","v":""},{"$f":"IF(Auswertung!E12=\"\",\"\",Auswertung!E12)","v":""},{"$f":"IF(Auswertung!F12=\"\",\"\",Auswertung!F12)","v":""},{"$f":"IF(Auswertung!G12=\"\",\"\",Auswertung!G12)","v":""},{"$f":"IF(Auswertung!I12=\"\",\"\",Auswertung!I12)","v":""},{"$f":"IF(Auswertung!J12=\"\",\"\",Auswertung!J12)","v":""},null,null,null,null,null,null,null,null,null,null,null,null,null,null,null,null,null,null,null,null,null,null,null,null,null,null,null,null,null,null,null,null,{"$f":"Auswertung!R12","v":{"$error":"#N/A"}}]
[{"$f":"Auswertung!A13","v":12},{"$f":"Auswertung!B13","v":"  \n"},{"$f":"Auswertung!C13","v":"\n"},{"$f":"Auswertung!D13","v":""},{"$f":"IF(Auswertung!E13=\"\",\"\",Auswertung!E13)","v":""},{"$f":"IF(Auswertung!F13=\"\",\"\",Auswertung!F13)","v":""},{"$f":"IF(Auswertung!G13=\"\",\"\",Auswertung!G13)","v":""},{"$f":"IF(Auswertung!I13=\"\",\"\",Auswertung!I13)","v":""},{"$f":"IF(Auswertung!J13=\"\",\"\",Auswertung!J13)","v":""},null,null,null,null,null,null,null,null,null,null,null,null,null,null,null,null,null,null,null,null,null,null,null,null,null,null,null,null,null,null,null,null,{"$f":"Auswertung!R13","v":{"$error":"#N/A"}}]
[{"$f":"Auswertung!A14","v":13},{"$f":"Auswertung!B14","v":"  \n"},{"$f":"Auswertung!C14","v":"\n"},{"$f":"Auswertung!D14","v":""},{"$f":"IF(Auswertung!E14=\"\",\"\",Auswertung!E14)","v":""},{"$f":"IF(Auswertung!F14=\"\",\"\",Auswertung!F14)","v":""},{"$f":"IF(Auswertung!G14=\"\",\"\",Auswertung!G14)","v":""},{"$f":"IF(Auswertung!I14=\"\",\"\",Auswertung!I14)","v":""},{"$f":"IF(Auswertung!J14=\"\",\"\",Auswertung!J14)","v":""},null,null,null,null,null,null,null,null,null,null,null,null,null,null,null,null,null,null,null,null,null,null,null,null,null,null,null,null,null,null,null,null,{"$f":"Auswertung!R14","v":{"$error":"#N/A"}}]
[{"$f":"Auswertung!A15","v":14},{"$f":"Auswertung!B15","v":"  \n"},{"$f":"Auswertung!C15","v":"\n"},{"$f":"Auswertung!D15","v":""},{"$f":"IF(Auswertung!E15=\"\",\"\",Auswertung!E15)","v":""},{"$f":"IF(Auswertung!F15=\"\",\"\",Auswertung!F15)","v":""},{"$f":"IF(Auswertung!G15=\"\",\"\",Auswertung!G15)","v":""},{"$f":"IF(Auswertung!I15=\"\",\"\",Auswertung!I15)","v":""},{"$f":"IF(Auswertung!J15=\"\",\"\",Auswertung!J15)","v":""},null,null,null,null,null,null,null,null,null,null,null,null,null,null,null,null,null,null,null,null,null,null,null,null,null,null,null,null,null,null,null,null,{"$f":"Auswertung!R15","v":{"$error":"#N/A"}}]
[{"$f":"Auswertung!A16","v":15},{"$f":"Auswertung!B16","v":"  \n"},{"$f":"Auswertung!C16","v":"\n"},{"$f":"Auswertung!D16","v":""},{"$f":"IF(Auswertung!E16=\"\",\"\",Auswertung!E16)","v":""},{"$f":"IF(Auswertung!F16=\"\",\"\",Auswertung!F16)","v":""},{"$f":"IF(Auswertung!G16=\"\",\"\",Auswertung!G16)","v":""},{"$f":"IF(Auswertung!I16=\"\",\"\",Auswertung!I16)","v":""},{"$f":"IF(Auswertung!J16=\"\",\"\",Auswertung!J16)","v":""},null,null,null,null,null,null,null,null,null,null,null,null,null,null,null,null,null,null,null,null,null,null,null,null,null,null,null,null,null,null,null,null,{"$f":"Auswertung!R16","v":{"$error":"#N/A"}}]
[{"$f":"Auswertung!A17","v":16},{"$f":"Auswertung!B17","v":"  \n"},{"$f":"Auswertung!C17","v":"\n"},{"$f":"Auswertung!D17","v":""},{"$f":"IF(Auswertung!E17=\"\",\"\",Auswertung!E17)","v":""},{"$f":"IF(Auswertung!F17=\"\",\"\",Auswertung!F17)","v":""},{"$f":"IF(Auswertung!G17=\"\",\"\",Auswertung!G17)","v":""},{"$f":"IF(Auswertung!I17=\"\",\"\",Auswertung!I17)","v":""},{"$f":"IF(Auswertung!J17=\"\",\"\",Auswertung!J17)","v":""},null,null,null,null,null,null,null,null,null,null,null,null,null,null,null,null,null,null,null,null,null,null,null,null,null,null,null,null,null,null,null,null,{"$f":"Auswertung!R17","v":{"$error":"#N/A"}}]
[{"$f":"Auswertung!A18","v":17},{"$f":"Auswertung!B18","v":"  \n"},{"$f":"Auswertung!C18","v":"\n"},{"$f":"Auswertung!D18","v":""},{"$f":"IF(Auswertung!E18=\"\",\"\",Auswertung!E18)","v":""},{"$f":"IF(Auswertung!F18=\"\",\"\",Auswertung!F18)","v":""},{"$f":"IF(Auswertung!G18=\"\",\"\",Auswertung!G18)","v":""},{"$f":"IF(Auswertung!I18=\"\",\"\",Auswertung!I18)","v":""},{"$f":"IF(Auswertung!J18=\"\",\"\",Auswertung!J18)","v":""},null,null,null,null,null,null,null,null,null,null,null,null,null,null,null,null,null,null,null,null,null,null,null,null,null,null,null,null,null,null,null,null,{"$f":"Auswertung!R18","v":{"$error":"#N/A"}}]
[{"$f":"Auswertung!A19","v":18},{"$f":"Auswertung!B19","v":"  \n"},{"$f":"Auswertung!C19","v":"\n"},{"$f":"Auswertung!D19","v":""},{"$f":"IF(Auswertung!E19=\"\",\"\",Auswertung!E19)","v":""},{"$f":"IF(Auswertung!F19=\"\",\"\",Auswertung!F19)","v":""},{"$f":"IF(Auswertung!G19=\"\",\"\",Auswertung!G19)","v":""},{"$f":"IF(Auswertung!I19=\"\",\"\",Auswertung!I19)","v":""},{"$f":"IF(Auswertung!J19=\"\",\"\",Auswertung!J19)","v":""},null,null,null,null,null,null,null,null,null,null,null,null,null,null,null,null,null,null,null,null,null,null,null,null,null,null,null,null,null,null,null,null,{"$f":"Auswertung!R19","v":{"$error":"#N/A"}}]
[{"$f":"Auswertung!A20","v":19},{"$f":"Auswertung!B20","v":"  \n"},{"$f":"Auswertung!C20","v":"\n"},{"$f":"Auswertung!D20","v":""},{"$f":"IF(Auswertung!E20=\"\",\"\",Auswertung!E20)","v":""},{"$f":"IF(Auswertung!F20=\"\",\"\",Auswertung!F20)","v":""},{"$f":"IF(Auswertung!G20=\"\",\"\",Auswertung!G20)","v":""},{"$f":"IF(Auswertung!I20=\"\",\"\",Auswertung!I20)","v":""},{"$f":"IF(Auswertung!J20=\"\",\"\",Auswertung!J20)","v":""},null,null,null,null,null,null,null,null,null,null,null,null,null,null,null,null,null,null,null,null,null,null,null,null,null,null,null,null,null,null,null,null,{"$f":"Auswertung!R20","v":{"$error":"#N/A"}}]
[{"$f":"Auswertung!A21","v":20},{"$f":"Auswertung!B21","v":"  \n"},{"$f":"Auswertung!C21","v":"\n"},{"$f":"Auswertung!D21","v":""},{"$f":"IF(Auswertung!E21=\"\",\"\",Auswertung!E21)","v":""},{"$f":"IF(Auswertung!F21=\"\",\"\",Auswertung!F21)","v":""},{"$f":"IF(Auswertung!G21=\"\",\"\",Auswertung!G21)","v":""},{"$f":"IF(Auswertung!I21=\"\",\"\",Auswertung!I21)","v":""},{"$f":"IF(Auswertung!J21=\"\",\"\",Auswertung!J21)","v":""},null,null,null,null,null,null,null,null,null,null,null,null,null,null,null,null,null,null,null,null,null,null,null,null,null,null,null,null,null,null,null,null,{"$f":"Auswertung!R21","v":{"$error":"#N/A"}}]
[{"$f":"Auswertung!A22","v":21},{"$f":"Auswertung!B22","v":"  \n"},{"$f":"Auswertung!C22","v":"\n"},{"$f":"Auswertung!D22","v":""},{"$f":"IF(Auswertung!E22=\"\",\"\",Auswertung!E22)","v":""},{"$f":"IF(Auswertung!F22=\"\",\"\",Auswertung!F22)","v":""},{"$f":"IF(Auswertung!G22=\"\",\"\",Auswertung!G22)","v":""},{"$f":"IF(Auswertung!I22=\"\",\"\",Auswertung!I22)","v":""},{"$f":"IF(Auswertung!J22=\"\",\"\",Auswertung!J22)","v":""},null,null,null,null,null,null,null,null,null,null,null,null,null,null,null,null,null,null,null,null,null,null,null,null,null,null,null,null,null,null,null,null,{"$f":"Auswertung!R22","v":{"$error":"#N/A"}}]
[{"$f":"Auswertung!A23","v":22},{"$f":"Auswertung!B23","v":"  \n"},{"$f":"Auswertung!C23","v":"\n"},{"$f":"Auswertung!D23","v":""},{"$f":"IF(Auswertung!E23=\"\",\"\",Auswertung!E23)","v":""},{"$f":"IF(Auswertung!F23=\"\",\"\",Auswertung!F23)","v":""},{"$f":"IF(Auswertung!G23=\"\",\"\",Auswertung!G23)","v":""},{"$f":"IF(Auswertung!I23=\"\",\"\",Auswertung!I23)","v":""},{"$f":"IF(Auswertung!J23=\"\",\"\",Auswertung!J23)","v":""},null,null,null,null,null,null,null,null,null,null,null,null,null,null,null,null,null,null,null,null,null,null,null,null,null,null,null,null,null,null,null,null,{"$f":"Auswertung!R23","v":{"$error":"#N/A"}}]
[{"$f":"Auswertung!A24","v":23},{"$f":"Auswertung!B24","v":"  \n"},{"$f":"Auswertung!C24","v":"\n"},{"$f":"Auswertung!D24","v":""},{"$f":"IF(Auswertung!E24=\"\",\"\",Auswertung!E24)","v":""},{"$f":"IF(Auswertung!F24=\"\",\"\",Auswertung!F24)","v":""},{"$f":"IF(Auswertung!G24=\"\",\"\",Auswertung!G24)","v":""},{"$f":"IF(Auswertung!I24=\"\",\"\",Auswertung!I24)","v":""},{"$f":"IF(Auswertung!J24=\"\",\"\",Auswertung!J24)","v":""},null,null,null,null,null,null,null,null,null,null,null,null,null,null,null,null,null,null,null,null,null,null,null,null,null,null,null,null,null,null,null,null,{"$f":"Auswertung!R24","v":{"$error":"#N/A"}}]
[{"$f":"Auswertung!A25","v":24},{"$f":"Auswertung!B25","v":"  \n"},{"$f":"Auswertung!C25","v":"\n"},{"$f":"Auswertung!D25","v":""},{"$f":"IF(Auswertung!E25=\"\",\"\",Auswertung!E25)","v":""},{"$f":"IF(Auswertung!F25=\"\",\"\",Auswertung!F25)","v":""},{"$f":"IF(Auswertung!G25=\"\",\"\",Auswertung!G25)","v":""},{"$f":"IF(Auswertung!I25=\"\",\"\",Auswertung!I25)","v":""},{"$f":"IF(Auswertung!J25=\"\",\"\",Auswertung!J25)","v":""},null,null,null,null,null,null,null,null,null,null,null,null,null,null,null,null,null,null,null,null,null,null,null,null,null,null,null,null,null,null,null,null,{"$f":"Auswertung!R25","v":{"$error":"#N/A"}}]
[{"$f":"Auswertung!A26","v":25},{"$f":"Auswertung!B26","v":"  \n"},{"$f":"Auswertung!C26","v":"\n"},{"$f":"Auswertung!D26","v":""},{"$f":"IF(Auswertung!E26=\"\",\"\",Auswertung!E26)","v":""},{"$f":"IF(Auswertung!F26=\"\",\"\",Auswertung!F26)","v":""},{"$f":"IF(Auswertung!G26=\"\",\"\",Auswertung!G26)","v":""},{"$f":"IF(Auswertung!I26=\"\",\"\",Auswertung!I26)","v":""},{"$f":"IF(Auswertung!J26=\"\",\"\",Auswertung!J26)","v":""},null,null,null,null,null,null,null,null,null,null,null,null,null,null,null,null,null,null,null,null,null,null,null,null,null,null,null,null,null,null,null,null,{"$f":"Auswertung!R26","v":{"$error":"#N/A"}}]
[{"$f":"Auswertung!A27","v":26},{"$f":"Auswertung!B27","v":"  \n"},{"$f":"Auswertung!C27","v":"\n"},{"$f":"Auswertung!D27","v":""},{"$f":"IF(Auswertung!E27=\"\",\"\",Auswertung!E27)","v":""},{"$f":"IF(Auswertung!F27=\"\",\"\",Auswertung!F27)","v":""},{"$f":"IF(Auswertung!G27=\"\",\"\",Auswertung!G27)","v":""},{"$f":"IF(Auswertung!I27=\"\",\"\",Auswertung!I27)","v":""},{"$f":"IF(Auswertung!J27=\"\",\"\",Auswertung!J27)","v":""},null,null,null,null,null,null,null,null,null,null,null,null,null,null,null,null,null,null,null,null,null,null,null,null,null,null,null,null,null,null,null,null,{"$f":"Auswertung!R27","v":{"$error":"#N/A"}}]
[{"$f":"Auswertung!A28","v":27},{"$f":"Auswertung!B28","v":"  \n"},{"$f":"Auswertung!C28","v":"\n"},{"$f":"Auswertung!D28","v":""},{"$f":"IF(Auswertung!E28=\"\",\"\",Auswertung!E28)","v":""},{"$f":"IF(Auswertung!F28=\"\",\"\",Auswertung!F28)","v":""},{"$f":"IF(Auswertung!G28=\"\",\"\",Auswertung!G28)","v":""},{"$f":"IF(Auswertung!I28=\"\",\"\",Auswertung!I28)","v":""},{"$f":"IF(Auswertung!J28=\"\",\"\",Auswertung!J28)","v":""},null,null,null,null,null,null,null,null,null,null,null,null,null,null,null,null,null,null,null,null,null,null,null,null,null,null,null,null,null,null,null,null,{"$f":"Auswertung!R28","v":{"$error":"#N/A"}}]
[{"$f":"Auswertung!A29","v":28},{"$f":"Auswertung!B29","v":"  \n"},{"$f":"Auswertung!C29","v":"\n"},{"$f":"Auswertung!D29","v":""},{"$f":"IF(Auswertung!E29=\"\",\"\",Auswertung!E29)","v":""},{"$f":"IF(Auswertung!F29=\"\",\"\",Auswertung!F29)","v":""},{"$f":"IF(Auswertung!G29=\"\",\"\",Auswertung!G29)","v":""},{"$f":"IF(Auswertung!I29=\"\",\"\",Auswertung!I29)","v":""},{"$f":"IF(Auswertung!J29=\"\",\"\",Auswertung!J29)","v":""},null,null,null,null,null,null,null,null,null,null,null,null,null,null,null,null,null,null,null,null,null,null,null,null,null,null,null,null,null,null,null,null,{"$f":"Auswertung!R29","v":{"$error":"#N/A"}}]
[{"$f":"Auswertung!A30","v":29},{"$f":"Auswertung!B30","v":"  \n"},{"$f":"Auswertung!C30","v":"\n"},{"$f":"Auswertung!D30","v":""},{"$f":"IF(Auswertung!E30=\"\",\"\",Auswertung!E30)","v":""},{"$f":"IF(Auswertung!F30=\"\",\"\",Auswertung!F30)","v":""},{"$f":"IF(Auswertung!G30=\"\",\"\",Auswertung!G30)","v":""},{"$f":"IF(Auswertung!I30=\"\",\"\",Auswertung!I30)","v":""},{"$f":"IF(Auswertung!J30=\"\",\"\",Auswertung!J30)","v":""},null,null,null,null,null,null,null,null,null,null,null,null,null,null,null,null,null,null,null,null,null,null,null,null,null,null,null,null,null,null,null,null,{"$f":"Auswertung!R30","v":{"$error":"#N/A"}}]
[{"$f":"Auswertung!A31","v":30},{"$f":"Auswertung!B31","v":"  \n"},{"$f":"Auswertung!C31","v":"\n"},{"$f":"Auswertung!D31","v":""},{"$f":"IF(Auswertung!E31=\"\",\"\",Auswertung!E31)","v":""},{"$f":"IF(Auswertung!F31=\"\",\"\",Auswertung!F31)","v":""},{"$f":"IF(Auswertung!G31=\"\",\"\",Auswertung!G31)","v":""},{"$f":"IF(Auswertung!I31=\"\",\"\",Auswertung!I31)","v":""},{"$f":"IF(Auswertung!J31=\"\",\"\",Auswertung!J31)","v":""},null,null,null,null,null,null,null,null,null,null,null,null,null,null,null,null,null,null,null,null,null,null,null,null,null,null,null,null,null,null,null,null,{"$f":"Auswertung!R31","v":{"$error":"#N/A"}}]
[{"$f":"Auswertung!A32","v":31},{"$f":"Auswertung!B32","v":"  \n"},{"$f":"Auswertung!C32","v":"\n"},{"$f":"Auswertung!D32","v":""},{"$f":"IF(Auswertung!E32=\"\",\"\",Auswertung!E32)","v":""},{"$f":"IF(Auswertung!F32=\"\",\"\",Auswertung!F32)","v":""},{"$f":"IF(Auswertung!G32=\"\",\"\",Auswertung!G32)","v":""},{"$f":"IF(Auswertung!I32=\"\",\"\",Auswertung!I32)","v":""},{"$f":"IF(Auswertung!J32=\"\",\"\",Auswertung!J32)","v":""},null,null,null,null,null,null,null,null,null,null,null,null,null,null,null,null,null,null,null,null,null,null,null,null,null,null,null,null,null,null,null,null,{"$f":"Auswertung!R32","v":{"$error":"#N/A"}}]
[{"$f":"Auswertung!A33","v":32},{"$f":"Auswertung!B33","v":"  \n"},{"$f":"Auswertung!C33","v":"\n"},{"$f":"Auswertung!D33","v":""},{"$f":"IF(Auswertung!E33=\"\",\"\",Auswertung!E33)","v":""},{"$f":"IF(Auswertung!F33=\"\",\"\",Auswertung!F33)","v":""},{"$f":"IF(Auswertung!G33=\"\",\"\",Auswertung!G33)","v":""},{"$f":"IF(Auswertung!I33=\"\",\"\",Auswertung!I33)","v":""},{"$f":"IF(Auswertung!J33=\"\",\"\",Auswertung!J33)","v":""},null,null,null,null,null,null,null,null,null,null,null,null,null,null,null,null,null,null,null,null,null,null,null,null,null,null,null,null,null,null,null,null,{"$f":"Auswertung!R33","v":{"$error":"#N/A"}}]
[{"$f":"Auswertung!A34","v":33},{"$f":"Auswertung!B34","v":"  \n"},{"$f":"Auswertung!C34","v":"\n"},{"$f":"Auswertung!D34","v":""},{"$f":"IF(Auswertung!E34=\"\",\"\",Auswertung!E34)","v":""},{"$f":"IF(Auswertung!F34=\"\",\"\",Auswertung!F34)","v":""},{"$f":"IF(Auswertung!G34=\"\",\"\",Auswertung!G34)","v":""},{"$f":"IF(Auswertung!I34=\"\",\"\",Auswertung!I34)","v":""},{"$f":"IF(Auswertung!J34=\"\",\"\",Auswertung!J34)","v":""},null,null,null,null,null,null,null,null,null,null,null,null,null,null,null,null,null,null,null,null,null,null,null,null,null,null,null,null,null,null,null,null,{"$f":"Auswertung!R34","v":{"$error":"#N/A"}}]
[{"$f":"Auswertung!A35","v":34},{"$f":"Auswertung!B35","v":"  \n"},{"$f":"Auswertung!C35","v":"\n"},{"$f":"Auswertung!D35","v":""},{"$f":"IF(Auswertung!E35=\"\",\"\",Auswertung!E35)","v":""},{"$f":"IF(Auswertung!F35=\"\",\"\",Auswertung!F35)","v":""},{"$f":"IF(Auswertung!G35=\"\",\"\",Auswertung!G35)","v":""},{"$f":"IF(Auswertung!I35=\"\",\"\",Auswertung!I35)","v":""},{"$f":"IF(Auswertung!J35=\"\",\"\",Auswertung!J35)","v":""},null,null,null,null,null,null,null,null,null,null,null,null,null,null,null,null,null,null,null,null,null,null,null,null,null,null,null,null,null,null,null,null,{"$f":"Auswertung!R35","v":{"$error":"#N/A"}}]
[{"$f":"Auswertung!A36","v":35},{"$f":"Auswertung!B36","v":"  \n"},{"$f":"Auswertung!C36","v":"\n"},{"$f":"Auswertung!D36","v":""},{"$f":"IF(Auswertung!E36=\"\",\"\",Auswertung!E36)","v":""},{"$f":"IF(Auswertung!F36=\"\",\"\",Auswertung!F36)","v":""},{"$f":"IF(Auswertung!G36=\"\",\"\",Auswertung!G36)","v":""},{"$f":"IF(Auswertung!I36=\"\",\"\",Auswertung!I36)","v":""},{"$f":"IF(Auswertung!J36=\"\",\"\",Auswertung!J36)","v":""},null,null,null,null,null,null,null,null,null,null,null,null,null,null,null,null,null,null,null,null,null,null,null,null,null,null,null,null,null,null,null,null,{"$f":"Auswertung!R36","v":{"$error":"#N/A"}}]
[{"$f":"Auswertung!A37","v":36},{"$f":"Auswertung!B37","v":"  \n"},{"$f":"Auswertung!C37","v":"\n"},{"$f":"Auswertung!D37","v":""},{"$f":"IF(Auswertung!E37=\"\",\"\",Auswertung!E37)","v":""},{"$f":"IF(Auswertung!F37=\"\",\"\",Auswertung!F37)","v":""},{"$f":"IF(Auswertung!G37=\"\",\"\",Auswertung!G37)","v":""},{"$f":"IF(Auswertung!I37=\"\",\"\",Auswertung!I37)","v":""},{"$f":"IF(Auswertung!J37=\"\",\"\",Auswertung!J37)","v":""},null,null,null,null,null,null,null,null,null,null,null,null,null,null,null,null,null,null,null,null,null,null,null,null,null,null,null,null,null,null,null,null,{"$f":"Auswertung!R37","v":{"$error":"#N/A"}}]
[]
[]
[null,"Unterschrit LR",null,null,"Unterschrift PL"]

{"sheet":"Sammelblatt","index":5,"n_rows":49,"n_cols":15,"rows_kept":49,"cut":false,"hidden":false,"merged":[[1,0,1,8],[2,0,2,8],[3,6,3,12],[4,6,4,12],[48,0,48,7],[48,8,48,12],[7,0,7,2],[7,3,7,8],[7,9,7,10],[8,0,8,2],[8,3,8,12],[10,0,10,2],[45,0,45,12],[47,0,47,1],[47,2,47,7],[47,8,47,12],[30,14,31,16],[6,0,6,2],[6,3,6,8],[6,9,6,10],[6,11,6,12]]}
[]
[{"$f":"Organisation!D3","v":"Südwestdeutscher Hundesportverband"}]
["Prüfungs-Sammelblatt"]
[null,null,null,null,"Leistungsrichter:",null,{"$f":"IF(Organisation!B11=\"\",\"\",Organisation!B11)","v":"Horst Hinterhuber"}]
[null,null,null,null,null,null,{"$f":"IF(Organisation!B12=\"\",\"\",Organisation!B12)","v":""}]
["Bericht über abgehaltene Leistungsveranstaltungen"]
["Austragender Verein :",null,null,{"$f":"IF(Organisation!B7=\"\",\"\",Organisation!B7)","v":"Hundefreunde Irgendwo"},null,null,null,null,null,"Vereinsnr:",null,{"$f":"IF(Organisation!B8=\"\",\"\",Organisation!B8)","v":"0305"}]
["Tag der Veranstaltung :",null,null,{"$f":"IF(Organisation!B10=\"\",\"\",Organisation!B10)","v":"30.03.2019"},null,null,null,null,null,"KG:",null,{"$f":"IF(Organisation!B9=\"\",\"\",Organisation!B9)","v":3}]
["Anschrift, Tel.-Nr. des Prüfungsleiters :",null,null,{"$f":"CONCATENATE(Organisation!B14,\", Tel: \",Organisation!B17,CHAR(10),Organisation!B15,\", \",Organisation!B16)","v":"Hans Wurst, Tel: 0621 xxxxx\nMetzgerstr. 4, 68259 Mannheim"}]
[]
["Art der Veranstaltung:",null,null,{"$f":"Organisation!B5","v":"Vereinsprüfung"}]
["Prüfungsnummer",null,null,{"$f":"IF(Organisation!B6=\"\",\"\",Organisation!B6)","v":135}]
["Helfer 1",null,null,{"$f":"IF(Organisation!B19=\"\",\"\",Organisation!B19)","v":""}]
["Helfer 2",null,null,{"$f":"IF(Organisation!B20=\"\",\"\",Organisation!B20)","v":""}]
[]
["Aufschlüsselung der vorgeführten Hunde und Bewertungen"]
[null,"Anzahl Hunde vorgeführt in",null,null,"Einheiten (E)","             nicht bei Pokalkämpfen und Sparten!!",null,null,null,null,"       nicht bestanden in"]
[null,"A","B","C","Gesamt","vorz","sgt","gut","befr","mang","A","B","C"]
["GPr 1 (2E)",null,null,null,{"$f":"IF(MAX(B19:D19)>0,C19+D19,\"\")","v":""}]
["GPr 2 (2E)",null,null,null,{"$f":"IF(MAX(B20:D20)>0,C20+D20,\"\")","v":""}]
["GPr 3 (2E)",null,null,null,{"$f":"IF(MAX(B21:D21)>0,C21+D21,\"\")","v":""}]
["IGP V (2E)",null,null,null,{"$f":"IF(MAX(B22:D22)>0,MAX(B22:D22)*2,\"\")","v":""}]
["IGP ZTP (3E)",null,null,null,{"$f":"IF(MAX(B23:D23)>0,B23+C23+D23,\"\")","v":""}]
["FPr-UPr-SPr 1"]
["FPr-UPr-SPr 2"]
["FPr-UPr-SPr 3"]
["IGP 1 (3E)",null,null,null,{"$f":"IF(MAX(B27:D27)>0,B27+C27+D27,\"\")","v":""}]
["IGP 2 (3E)",null,null,null,{"$f":"IF(MAX(B28:D28)>0,B28+C28+D28,\"\")","v":""}]
["IGP 3 (3E)",null,null,null,{"$f":"IF(MAX(B29:D29)>0,B29+C29+D29,\"\")","v":""}]
["IFH-V (1E)",null,null,null,{"$f":"IF(MAX(B30:D30)>0,B30*1,\"\")","v":""}]
["IFH-1 (3E)",null,null,null,{"$f":"IF(MAX(B31:D31)>0,B31*3,\"\")","v":""},null,null,null,null,null,null,null,null,null,"Manuell ausfüllen"]
["IFH-2 (3E)",null,null,null,{"$f":"IF(MAX(B32:D32)>0,B32*3,\"\")","v":""}]
["IGP-FH (6E)",null,null,null,{"$f":"IF(MAX(B33:D33)>0,B33*6,\"\")","v":""}]
["IBGH 1 (1E)",null,null,null,{"$f":"IF(C34=\"\",\"\",C34)","v":""}]
["IBGH 2 (1E)",null,null,null,{"$f":"IF(C35=\"\",\"\",C35)","v":""}]
["IBGH 3 (1E)",null,null,null,{"$f":"IF(C36=\"\",\"\",C36)","v":""}]
["BH (2E)",null,null,null,{"$f":"IF(MAX(B37:D37)>0,C37*2,\"\")","v":""}]
["BH/SK (3E)",null,null,null,{"$f":"IF(MAX(B38:D38)>0,C38*3,\"\")","v":""}]
["SK (1E)"]
["Team-Test (2)"]
["StöberSt. 1 (1)",null,null,null,{"$f":"IF(MAX(B41:D41)>0,B41*1,\"\")","v":""}]
["StöberSt. 2 (1)",null,null,null,{"$f":"IF(MAX(B42:D42)>0,B42*1,\"\")","v":""}]
["StöberSt. 3 (1)",null,null,null,{"$f":"IF(MAX(B43:D43)>0,B43*1,\"\")","v":""}]
["Summe",{"$f":"IF(SUM(B19:B43)=0,\"\",SUM(B19:B43))","v":""},{"$f":"IF(SUM(C19:C43)=0,\"\",SUM(C19:C43))","v":""},"","","","","","","","","",""]
[]
["Bemerkungen: (vom Leistungsrichter auszufüllen)"]
[]
["Schutzdiensthelfer:"]
["Dieses Blatt ist sorgfältig vom LR auszufüllen und mit den\nPrüfungsunterlagen der Leistungsbuchstelle zuzusenden.",null,null,null,null,null,null,null,"Unterschrift des LR"]

{"sheet":"Meldescheine","index":6,"n_rows":29,"n_cols":25,"rows_kept":29,"cut":false,"hidden":false,"merged":[[9,6,9,9],[10,1,10,2],[11,1,11,2],[22,1,22,9],[15,1,15,7],[16,6,16,9],[18,1,18,9],[19,1,19,9],[10,3,10,5],[11,3,11,5],[12,1,12,9],[15,8,15,9],[16,1,16,3],[14,1,14,9],[28,5,28,9],[27,5,27,9],[17,1,17,3],[17,6,17,9],[24,0,24,9],[25,1,25,5],[25,7,25,9],[20,1,20,6],[20,8,20,9],[21,1,21,9],[23,1,23,6],[23,8,23,9],[28,0,28,3],[0,6,1,6],[0,7,1,9],[4,1,4,6],[6,8,6,9],[7,8,7,9],[0,0,2,1],[7,1,8,4],[8,8,8,9]]}
[{"$f":"Organisation!D3","v":"Südwestdeutscher Hundesportverband"},null,null,null,null,null,"LB-Nr.:",{"$f":"IF($M$15=\"\",\"\",LOOKUP(L5,'Stammdaten HF'!A:A,'Stammdaten HF'!S:S))","v":123}]
[]
[]
[]
["Veranstaltender Verein:",{"$f":"Organisation!B7","v":"Hundefreunde Irgendwo"},null,null,null,null,null,"Vereins-Nr.:",null,{"$f":"Organisation!B8","v":"0305"},null,1]
[null,null,null,null,null,null,null,"Prf.Nr."]
["Anmeldung zur",null,null,null,null,"A","B","C","Gesamt"]
["Gebrauchshundeprf",{"$f":"LOOKUP(L5,'Stammdaten HF'!A:A,'Stammdaten HF'!C:C)","v":"IFH 1"},null,null,null,{"$f":"M8","v":84},{"$f":"N8","v":90},91,{"$f":"Q8","v":265},null,null,null,{"$f":"IF(INDEX(Auswertung!$E$2:$E$37,MATCH($L$5,Auswertung!$A$2:$A$37,))=\"\",\"\",INDEX(Auswertung!$E$2:$E$37,MATCH($L$5,Auswertung!$A$2:$A$37,)))","v":84},{"$f":"IF(INDEX(Auswertung!$F$2:$F$37,MATCH($L$5,Auswertung!$A$2:$A$37,))=\"\",\"\",INDEX(Auswertung!$F$2:$F$37,MATCH($L$5,Auswertung!$A$2:$A$37,)))","v":90},{"$f":"IF(INDEX(Auswertung!$G$2:$G$37,MATCH($L$5,Auswertung!$A$2:$A$37,))=\"\",\"\",INDEX(Auswertung!$G$2:$G$37,MATCH($L$5,Auswertung!$A$2:$A$37,)))","v":91},{"$f":"IF(INDEX(Auswertung!$H$2:$H$37,MATCH($L$5,Auswertung!$A$2:$A$37,))=\"\",\"\",INDEX(Auswertung!$H$2:$H$37,MATCH($L$5,Auswertung!$A$2:$A$37,)))","v":"a"},{"$f":"IF(INDEX(Auswertung!$I$2:$I$37,MATCH($L$5,Auswertung!$A$2:$A$37,))=\"\",\"\",INDEX(Auswertung!$I$2:$I$37,MATCH($L$5,Auswertung!$A$2:$A$37,)))","v":265},{"$f":"IF(INDEX(Auswertung!$J$2:$J$37,MATCH($L$5,Auswertung!$A$2:$A$37,))=\"\",\"\",INDEX(Auswertung!$J$2:$J$37,MATCH($L$5,Auswertung!$A$2:$A$37,)))","v":"V"},{"$f":"IF(INDEX(Auswertung!$D$2:$D$37,MATCH($L$5,Auswertung!$A$2:$A$37,))=\"\",\"\",INDEX(Auswertung!$D$2:$D$37,MATCH($L$5,Auswertung!$A$2:$A$37,)))","v":"IFH 1"}]
["Fährtenhundprüfung",null,null,null,null,"Note",{"$f":"R8","v":"V"},"AK:",{"$f":"IF(OR(G9=\"n.b.\",G9=\"mgh\"),\"ohne\",IF(OR(S8=\"BH/SK\",S8=\"BH\"),R8,S8))","v":"IFH 1"}]
["Stöberprüfung",null,null,null,null,"TSB",{"$f":"IF(P8=\"a\",\"ausgeprägt\",IF(P8=\"vh\",\"vorhanden\",IF(P8=\"ng\",\"nicht genügend\",\"\")))","v":"ausgeprägt"}]
["Spartenprf.",null,null,"BH bestanden:",null,null,"ja",null,"nein"]
["BH-Prf / TeamT / BGH",null,null,"SK bestanden:",null,null,"ja",null,"nein"]
["Leistungsrichter",{"$f":"CONCATENATE(Organisation!B11,\"   \",Organisation!B12)","v":"Horst Hinterhuber   "}]
[]
["Name des Hundes:",{"$f":"IF(OR(M15=\"\",M15=0),\"\",M15)","v":"Axel"},null,null,null,null,null,null,null,null,null,null,{"$f":"LOOKUP($L$5,'Stammdaten HF'!A:A,'Stammdaten HF'!Q:Q)","v":"Axel"},null,null,null,null,null,null,null,null,null,null,null,{"$f":"IF($R$4=\"\",\"\",CONCATENATE(S4,\" \",R4))","v":""}]
["Rasse",{"$f":"IF(OR(M16=\"\",M16=0),\"\",M16)","v":"Mixy"},null,null,null,null,null,null,{"$f":"IF(OR(N16=\"\",N16=0),\"\",N16)","v":"Rüde"},null,null,null,{"$f":"LOOKUP($L$5,'Stammdaten HF'!A:A,'Stammdaten HF'!R:R)","v":"Mixy"},{"$f":"LOOKUP($L$5,'Stammdaten HF'!A:A,'Stammdaten HF'!U:U)","v":"Rüde"}]
["Geworfen am:",{"$f":"IF(OR(M17=\"\",M17=0),\"\",M17)","v":"1978-07-01"},null,null,null,"Täto-Nr:",{"$f":"IF(OR(N17=\"\",N17=0),\"\",N17)","v":"MC- 3344"},null,null,null,null,null,{"$f":"LOOKUP($L$5,'Stammdaten HF'!$A:$A,'Stammdaten HF'!T:T)","v":28672},{"$f":"LOOKUP($L$5,'Stammdaten HF'!$A:$A,'Stammdaten HF'!W:W)","v":"MC- 3344"}]
["Chip-Nr.:",{"$f":"IF(OR(M18=\"\",M18=0),\"\",M18)","v":454454567883111},null,null,"ZB-od. Reg-Nr.:",null,{"$f":"IF(OR(N18=\"\",N18=0),\"\",N18)","v":"VDH/DMC 34345"},null,null,null,null,null,{"$f":"LOOKUP(L5,'Stammdaten HF'!A:A,'Stammdaten HF'!X:X)","v":454454567883111},{"$f":"LOOKUP(L5,'Stammdaten HF'!A:A,'Stammdaten HF'!V:V)","v":"VDH/DMC 34345"}]
["Eigentümer:",{"$f":"IF(OR(P19=\"\",P19=0),\"\",CONCATENATE(P19,\" \",M19))","v":"Dorothea Hübsch"},null,null,null,null,null,null,null,null,null,null,{"$f":"LOOKUP(L5,'Stammdaten HF'!A:A,'Stammdaten HF'!J:J)","v":"Hübsch"},null,null,{"$f":"LOOKUP(L5,'Stammdaten HF'!A:A,'Stammdaten HF'!K:K)","v":"Dorothea"}]
["Straße und Ort:",{"$f":"IF(OR(M20=\"\",M20=0),\"\",CONCATENATE(P20,\" \",M20))","v":"Schönau Max-Wi"},null,null,null,null,null,null,null,null,null,null,{"$f":"LOOKUP(L5,'Stammdaten HF'!A:A,'Stammdaten HF'!O:O)","v":"Max-Wi"},null,null,{"$f":"LOOKUP(L5,'Stammdaten HF'!A:A,'Stammdaten HF'!P:P)","v":"Schönau"}]
["In welchem\nVerein Mitglied",{"$f":"IF(OR(M21=\"\",M21=0),\"\",M21)","v":"SSPV"},null,null,null,null,null,"Mitgl.-Nr.:",{"$f":"IF(OR(N21=\"\",N21=0),\"\",N21)","v":30512345},null,null,null,{"$f":"LOOKUP(L5,'Stammdaten HF'!A:A,'Stammdaten HF'!L:L)","v":"SSPV"},{"$f":"LOOKUP(L5,'Stammdaten HF'!A:A,'Stammdaten HF'!M:M)","v":30512345}]
["Führer des Hundes",{"$f":"IF(OR(M22=0,M22=\"\"),\"\",CONCATENATE(P22,\" \",M22))","v":"Andreas Mustermax"},null,null,null,null,null,null,null,null,null,null,{"$f":"LOOKUP(L5,'Stammdaten HF'!A:A,'Stammdaten HF'!D:D)","v":"Mustermax"},null,null,{"$f":"LOOKUP(L5,'Stammdaten HF'!A:A,'Stammdaten HF'!E:E)","v":"Andreas"}]
["Straße und Ort:",{"$f":"IF(OR(M23=\"\",M23=0),\"\",CONCATENATE(P23,\" \",M23))","v":"Mannheim ringstr"},null,null,null,null,null,null,null,null,null,null,{"$f":"LOOKUP(L5,'Stammdaten HF'!A:A,'Stammdaten HF'!H:H)","v":"ringstr"},null,null,{"$f":"LOOKUP(L5,'Stammdaten HF'!A:A,'Stammdaten HF'!I:I)","v":"Mannheim"}]
["In welchem\nVerein Mitglied",{"$f":"IF(OR(M24=\"\",M24=0),\"\",M24)","v":"sspv MA"},null,null,null,null,null,"Mitgl.-Nr.:",{"$f":"IF(OR(N24=\"\",N24=0),\"\",N24)","v":30500001},null,null,null,{"$f":"LOOKUP(L5,'Stammdaten HF'!A:A,'Stammdaten HF'!F:F)","v":"sspv MA"},{"$f":"LOOKUP(L5,'Stammdaten HF'!A:A,'Stammdaten HF'!G:G)","v":30500001}]
[{"$f":"CONCATENATE(\"Mir ist bekannt, dass die Teilnahme an der Prüfung / Wettkampf auf eigene Rechnung und Gefahr erfolgt.\nDer Speicherung und Veröffentlichung meiner Daten für die sportlichen Zwecke beim \",Organisation!B3,\" / dhv / VDH stimme ich zu.\")","v":"Mir ist bekannt, dass die Teilnahme an der Prüfung / Wettkampf auf eigene Rechnung und Gefahr erfolgt.\nDer Speicherung und Veröffentlichung meiner Daten für die sportlichen Zwecke beim swhv / dhv / VDH stimme ich zu."}]
["Ort:",{"$f":"Organisation!B7","v":"Hundefreunde Irgendwo"},null,null,null,null,"den,",{"$f":"Organisation!B10","v":"30.03.2019"}]
[]
[]
["BH-Prf., LB-Nr., Mitgl.-Nr. ZB-Nr., Täto-Nr. u. sonst. Angaben überprüft durch LR (Stempel)",null,null,null,null,"(Unterschrift)"]

{"sheet":"Sportbeitrag","index":7,"n_rows":27,"n_cols":12,"rows_kept":27,"cut":false,"hidden":false,"merged":[[9,3,9,8],[8,0,8,2],[8,3,8,8],[8,9,8,10],[25,7,25,11],[17,7,17,8],[18,7,18,8],[19,7,19,8],[17,5,17,6],[18,5,18,6],[19,5,19,6],[17,11,17,12],[18,11,18,12],[19,11,19,12],[17,9,17,10],[18,9,18,10],[1,0,1,8],[2,0,2,8],[3,6,3,12],[4,6,4,12],[7,0,7,2],[7,3,7,8],[7,9,7,10],[7,11,7,12],[6,1,6,3],[6,9,6,10],[10,0,10,2],[10,3,10,12],[24,1,24,5],[25,1,25,5],[26,0,26,12],[11,0,11,2],[11,3,11,12],[19,9,19,10],[14,6,14,7],[17,2,17,3],[18,2,18,3],[19,2,19,3],[24,7,24,11]]}
[]
[{"$f":"Organisation!D3","v":"Südwestdeutscher Hundesportverband"}]
["Abrechnung - Sportbeitrag GHd"]
[]
[null,null,null,null,null,null,{"$f":"IF(Organisation!B12=\"\",\"\",Organisation!B12)","v":""}]
[]
["Prf.-Nr.:",{"$f":"IF(Organisation!B6=\"\",\"\",Organisation!B6)","v":135},null,null,null,null,null,null,"RechnungsNr.:"]
["Austragender Verein :",null,null,{"$f":"IF(Organisation!B7=\"\",\"\",Organisation!B7)","v":"Hundefreunde Irgendwo"},null,null,null,null,null,"Vereinsnr:",null,{"$f":"IF(Organisation!B8=\"\",\"\",Organisation!B8)","v":"0305"}]
["Tag der Veranstaltung :",null,null,{"$f":"IF(Organisation!B10=\"\",\"\",Organisation!B10)","v":"30.03.2019"},null,null,null,null,null,"KG:",null,{"$f":"IF(Organisation!B9=\"\",\"\",Organisation!B9)","v":3}]
["Leistungrichter/in",null,null,{"$f":"IF(Organisation!B11=\"\",\"\",Organisation!B11)","v":"Horst Hinterhuber"}]
["Anschrift, Tel.-Nr. des Prüfungsleiters :",null,null,{"$f":"CONCATENATE(Organisation!B14,\", Tel: \",Organisation!B17,CHAR(10),Organisation!B15,\", \",Organisation!B16)","v":"Hans Wurst, Tel: 0621 xxxxx\nMetzgerstr. 4, 68259 Mannheim"}]
["Art der Veranstaltung:",null,null,{"$f":"Organisation!B5","v":"Vereinsprüfung"}]
[]
[]
["Je Start werden Gebühren in Höhe von",null,null,null,null,null,{"$f":"Organisation!B22","v":1.1000000000000001},null,"Euro erhoben"]
[]
[]
["Prüfungsart",null,"BH/SK",null,"BH","IGP",null,"IFH",null,"IBGH",null,"Gesamt"]
["Teilnehmer",null,{"$f":"COUNTIF(Auswertung!$D$2:$D$37,\"BH/SK\")","v":1},null,{"$f":"COUNTIF(Auswertung!$D$2:$D$37,\"BH\")","v":0},{"$f":"COUNTIF(Auswertung!$D$2:$D$37,\"IGP ?\")+COUNTIF(Auswertung!$D$2:$D$37,\"IGP ZTP\")","v":1},null,{"$f":"COUNTIF(Auswertung!$D$2:$D$37,\"IFH ?\")+COUNTIF(Auswertung!$D$2:$D$37,\"IGP FH\")","v":1},null,{"$f":"COUNTIF(Auswertung!$D$2:$D$37,\"IBGH ?\")","v":0},null,{"$f":"SUM(C19:J19)","v":3}]
["Betrag",null,{"$f":"C19*$G15","v":1.1000000000000001},null,{"$f":"E19*$G15","v":0},{"$f":"F19*$G15","v":1.1000000000000001},null,{"$f":"H19*$G15","v":1.1000000000000001},null,{"$f":"J19*$G15","v":0},null,{"$f":"L19*$G15","v":3.3000000000000003}]
[]
[]
[]
[]
[]
[null,"Unterschrift des LR/in & Stempel",null,null,null,null,null,"Unterschrift Prüfungsleiter"]
[{"$f":"CONCATENATE(\"Dieses Blatt ist mit den Prüfungsunterlagen sofort an die \",Organisation!B3,\" - Geschäftsstelle zu senden.\")","v":"Dieses Blatt ist mit den Prüfungsunterlagen sofort an die swhv - Geschäftsstelle zu senden."}]

{"sheet":"RichterbuchIGP","index":8,"n_rows":58,"n_cols":19,"rows_kept":58,"cut":false,"hidden":false,"merged":[[0,3,1,5],[17,3,18,5],[38,3,39,5],[52,6,52,9],[53,6,53,9],[51,6,51,9],[40,2,40,6],[40,7,40,9],[41,1,41,7],[42,1,42,4],[42,7,42,9],[43,1,43,4],[43,7,43,9],[46,6,46,9],[47,6,47,9],[48,6,48,9],[54,6,54,9],[55,0,57,0],[55,1,57,1],[55,2,57,2],[55,3,57,3],[55,4,57,4],[55,5,57,5],[49,6,49,9],[50,6,50,9],[34,6,34,9],[24,6,24,9],[25,6,25,9],[26,6,26,9],[27,6,27,9],[28,6,28,9],[29,6,29,9],[30,6,30,9],[31,6,31,9],[32,6,32,9],[33,6,33,9],[22,1,22,4],[22,7,22,9],[2,2,2,6],[2,7,2,9],[3,1,3,7],[4,1,4,4],[4,7,4,9],[5,1,5,4],[5,7,5,9],[19,2,19,6],[19,7,19,9],[20,1,20,7],[21,1,21,4],[21,7,21,9]]}
["Abt. A (Fährte) ",null,null,{"$f":"IF($R$4=\"\",\"\",LOOKUP(J1,'Stammdaten HF'!A:A,'Stammdaten HF'!C:C))","v":"IGP 3"},null,null,null,null,"Kat:",4]
[]
["Name u. Anschrift des HF:",null,{"$f":"IF($R$4=\"\",\"\",CONCATENATE(S4,\" \",R4))","v":"Kunibert Hexenmeister"},null,null,null,null,{"$f":"IF($R$4=\"\",\"\",LOOKUP($J$1,'Stammdaten HF'!$A:A,'Stammdaten HF'!F:F))","v":"VdH Eningen"}]
["Name des Hundes: ",{"$f":"IF($R$4=\"\",\"\",LOOKUP($J$1,'Stammdaten HF'!$A:A,'Stammdaten HF'!Q:Q))","v":"Eidotter"},null,null,null,null,null,null," LB-Nr.: ",{"$f":"IF($R$4=\"\",\"\",LOOKUP($J$1,'Stammdaten HF'!$A:A,'Stammdaten HF'!S:S))","v":0},null,null,null,null,null,null,"HF",{"$f":"IF(LOOKUP($J$1,'Stammdaten HF'!$A:A,'Stammdaten HF'!D:D)=0,\"\",LOOKUP($J$1,'Stammdaten HF'!$A:A,'Stammdaten HF'!D:D))","v":"Hexenmeister"},{"$f":"IF(LOOKUP($J$1,'Stammdaten HF'!$A:B,'Stammdaten HF'!E:E)=0,\"\",LOOKUP($J$1,'Stammdaten HF'!$A:B,'Stammdaten HF'!E:E))","v":"Kunibert"}]
["Rasse: ",{"$f":"IF($R$4=\"\",\"\",LOOKUP($J$1,'Stammdaten HF'!$A:A,'Stammdaten HF'!R:R))","v":"Edelmix"},null,null,null," Täto-Nr. / Chip-Nr.: ",null,{"$f":"IF($R$4=\"\",\"\",CONCATENATE(R5,\" / \",R6))","v":"0 / 0"},null,null,null,null,null,null,null,null,"Täto",{"$f":"LOOKUP($J$1,'Stammdaten HF'!$A:A,'Stammdaten HF'!W:W)","v":0}]
["Wurftag: ",{"$f":"IF($R$4=\"\",\"\",LOOKUP($J$1,'Stammdaten HF'!$A:A,'Stammdaten HF'!T:T))","v":"00:00:00"},null,null,null,null," ZB-Nr.: ",{"$f":"IF($R$4=\"\",\"\",LOOKUP($J$1,'Stammdaten HF'!$A:A,'Stammdaten HF'!V:V))","v":0},null,null,null,null,null,null,null,null,"Chip",{"$f":"LOOKUP($J$1,'Stammdaten HF'!$A:A,'Stammdaten HF'!X:X)","v":0}]
[]
[null,null,null,null,null,null,null,null,null,null,null,null,null,null,null,null,"Stufe"]
[]
["Gelegt um:",null,null,null," Uhr",null,"Ansatz:",null,null,"Uhr"]
[]
["Hund :","verweist",null,null,null,"nimmt auf"]
[]
[]
[]
[]
[]
["Abt. B (Unterordnung)",null,null,{"$f":"$D$1","v":"IGP 3"},null,null,null,null,{"$f":"$I$1","v":"Kat:"},{"$f":"$J$1","v":4}]
[]
["Name u. Anschrift des HF:",null,{"$f":"$C$3","v":"Kunibert Hexenmeister"},null,null,null,null,{"$f":"$H$3","v":"VdH Eningen"}]
["Name des Hundes: ",{"$f":"$B$4","v":"Eidotter"},null,null,null,null,null,null," LB-Nr.: ",{"$f":"$J$4","v":0}]
["Rasse: ",{"$f":"$B$5","v":"Edelmix"},null,null,null," Täto-Nr. / Chip-Nr.:",null,{"$f":"$H$5","v":"0 / 0"}]
["Wurftag: ",{"$f":"$B$6","v":"00:00:00"},null,null,null,null," ZB-Nr.: ",{"$f":"$H$6","v":0}]
[]
["Übungs-Beschreibung",1,2,3,"Pkte.","Prä-dikat","Beschreibung der Leistungen"]
["Freifolge",15,15,15]
["Sitz aus der Bewegung",10,10,5]
["Ablegen in Verbindung mit Herankommen",10,10,10]
["Stehen aus der Bewegung","-",5,10]
["Bringen auf ebener Erde",15,10,10]
["Bringen über eine Hürde",15,15,15]
["Bringen über eine Schrägwand",15,15,15]
["Voraussenden mit Hinlegen",10,10,10]
["Ablegen unter Ablenkung",10,10,10]
["Zusammen",{"$f":"SUM(B26:B34)","v":100},{"$f":"SUM(C26:C34)","v":100},100]
[]
[]
[]
["Abt. C (Schutzdienst) ",null,null,{"$f":"$D$1","v":"IGP 3"},null,null,null,null,{"$f":"$I$1","v":"Kat:"},{"$f":"$J$1","v":4}]
[]
["Name u. Anschrift des HF:",null,{"$f":"$C$3","v":"Kunibert Hexenmeister"},null,null,null,null,{"$f":"$H$3","v":"VdH Eningen"}]
["Name des Hundes: ",{"$f":"$B$4","v":"Eidotter"},null,null,null,null,null,null," LB-Nr.: ",{"$f":"$J$4","v":0}]
["Rasse: ",{"$f":"$B$5","v":"Edelmix"},null,null,null," Täto-Nr. / Chip-Nr.:",null,{"$f":"$H$5","v":"0 / 0"}]
["Wurftag: ",{"$f":"$B$6","v":"00:00:00"},null,null,null,null," ZB-Nr.: ",{"$f":"$H$6","v":0}]
[]
[]
["Übungs-Beschreibung",1,2,3,"Pkte.","Prä-dikat","Beschreibung der Leistungen"]
["Revieren nach dem Helfer",5,5,10]
["Stellen (5) und Verbellen (10)",15,15,15]
["Verhinderung eines Fluchtversuchs des Helfers",20,15,10]
["Abwehr eines Angriffes aus der Bewachungsphase",30,20,15]
["Rückentransport","-",5,5]
["Überfall auf den Hund aus dem Rückentransport","-","-",15]
["Angriff auf den Hund aus der Bewegung",30,20,15]
["Abwehr des Hundes aus der Bewachungsphase","-",20,15]
["Zusammen",{"$f":"SUM(B48:B55)","v":100},{"$f":"SUM(C48:C55)","v":100},100,null,null,"TSB:         ","ausgeprägt"," \u0086"]
[null,null,null,null,null,null,"         ","vorhanden"," \u0086"]
[null,null,null,null,null,null,null,"nicht genügend "," \u0086"]

{"sheet":"RichterbuchGPr","index":9,"n_rows":39,"n_cols":19,"rows_kept":39,"cut":false,"hidden":false,"merged":[[27,6,27,9],[0,3,1,5],[19,3,20,5],[2,2,2,6],[2,7,2,9],[3,1,3,7],[4,1,4,4],[4,7,4,9],[5,7,5,9],[5,1,5,4],[7,6,7,9],[13,6,13,9],[14,6,14,9],[15,6,15,9],[16,6,16,9],[17,6,17,9],[22,1,22,7],[23,1,23,4],[23,7,23,9],[24,1,24,4],[24,7,24,9],[36,0,38,0],[36,1,38,1],[36,2,38,2],[36,3,38,3],[36,4,38,4],[36,5,38,5],[28,6,28,9],[29,6,29,9],[30,6,30,9],[31,6,31,9],[32,6,32,9],[33,6,33,9],[34,6,34,9],[35,6,35,9],[21,2,21,6],[21,7,21,9],[8,6,8,9],[9,6,9,9],[10,6,10,9],[11,6,11,9],[12,6,12,9]]}
["Abt. B (Unterordnung)",null,null,{"$f":"IF($R$4=\"\",\"\",LOOKUP(J1,'Stammdaten HF'!A:A,'Stammdaten HF'!C:C))","v":"IFH 1"},null,null,null,null,"Kat:",1]
[]
["Name u. Anschrift des HF:",null,{"$f":"IF($R$4=\"\",\"\",CONCATENATE(S4,\" \",R4))","v":"Andreas Mustermax"},null,null,null,null,{"$f":"IF($R$4=\"\",\"\",LOOKUP($J$1,'Stammdaten HF'!$A:A,'Stammdaten HF'!F:F))","v":"sspv MA"}]
["Name des Hundes: ",{"$f":"IF($R$4=\"\",\"\",LOOKUP($J$1,'Stammdaten HF'!$A:A,'Stammdaten HF'!Q:Q))","v":"Axel"},null,null,null,null,null,null," LB-Nr.: ",{"$f":"IF($R$4=\"\",\"\",LOOKUP($J$1,'Stammdaten HF'!$A:A,'Stammdaten HF'!S:S))","v":123},null,null,null,null,null,null,"HF",{"$f":"IF(LOOKUP($J$1,'Stammdaten HF'!$A:A,'Stammdaten HF'!D:D)=0,\"\",LOOKUP($J$1,'Stammdaten HF'!$A:A,'Stammdaten HF'!D:D))","v":"Mustermax"},{"$f":"IF(LOOKUP($J$1,'Stammdaten HF'!$A:B,'Stammdaten HF'!E:E)=0,\"\",LOOKUP($J$1,'Stammdaten HF'!$A:B,'Stammdaten HF'!E:E))","v":"Andreas"}]
["Rasse: ",{"$f":"IF($R$4=\"\",\"\",LOOKUP($J$1,'Stammdaten HF'!$A:A,'Stammdaten HF'!R:R))","v":"Mixy"},null,null,null," Täto-Nr. / Chip-Nr.: ",null,{"$f":"IF($R$4=\"\",\"\",CONCATENATE(R5,\" / \",R6))","v":"MC- 3344 / 454454567883111"},null,null,null,null,null,null,null,null,"Täto",{"$f":"LOOKUP($J$1,'Stammdaten HF'!$A:A,'Stammdaten HF'!W:W)","v":"MC- 3344"}]
["Wurftag: ",{"$f":"IF($R$4=\"\",\"\",LOOKUP($J$1,'Stammdaten HF'!$A:A,'Stammdaten HF'!T:T))","v":"1978-07-01"},null,null,null,null," ZB-Nr.: ",{"$f":"IF($R$4=\"\",\"\",LOOKUP($J$1,'Stammdaten HF'!$A:A,'Stammdaten HF'!V:V))","v":"VDH/DMC 34345"},null,null,null,null,null,null,null,null,"Chip",{"$f":"LOOKUP($J$1,'Stammdaten HF'!$A:A,'Stammdaten HF'!X:X)","v":454454567883111}]
[]
["Übungs-Beschreibung",1,2,3,"Pkte.","Prä-dikat","Beschreibung der Leistungen",null,null,null,null,null,null,null,null,null,"Stufe"]
["Freifolge",15,15,15]
["Sitz aus der Bewegung",10,10,5]
["Ablegen in Verbindung mit Herankommen",10,10,10]
["Stehen aus der Bewegung","-",5,10]
["Bringen auf ebener Erde",15,10,10]
["Bringen über eine Hürde",15,15,15]
["Bringen über eine Schrägwand",15,15,15]
["Voraussenden mit Hinlegen",10,10,10]
["Ablegen unter Ablenkung",10,10,10]
["Zusammen",{"$f":"SUM(B9:B17)","v":100},{"$f":"SUM(C9:C17)","v":100},{"$f":"SUM(D9:D17)","v":100}]
[]
["Abt. C (Schutzdienst) ",null,null,{"$f":"$D$1","v":"IFH 1"},null,null,null,null,{"$f":"$I$1","v":"Kat:"},{"$f":"$J$1","v":1}]
[]
["Name u. Anschrift des HF:",null,{"$f":"$C$3","v":"Andreas Mustermax"},null,null,null,null,{"$f":"$H$3","v":"sspv MA"}]
["Name des Hundes: ",{"$f":"$B$4","v":"Axel"},null,null,null,null,null,null," LB-Nr.: ",{"$f":"$J$4","v":123}]
["Rasse: ",{"$f":"$B$5","v":"Mixy"},null,null,null," Täto-Nr. / Chip-Nr.:",null,{"$f":"$H$5","v":"MC- 3344 / 454454567883111"}]
["Wurftag: ",{"$f":"$B$6","v":"1978-07-01"},null,null,null,null," ZB-Nr.: ",{"$f":"$H$6","v":"VDH/DMC 34345"}]
[]
[]
["Übungs-Beschreibung",1,2,3,"Pkte.","Prä-dikat","Beschreibung der Leistungen"]
["Revieren nach dem Helfer",5,5,10]
["Stellen (5) und Verbellen (10)",15,15,15]
["Verhinderung eines Fluchtversuchs des Helfers",20,15,10]
["Abwehr eines Angriffes aus der Bewachungsphase",30,20,15]
["Rückentransport","-",5,5]
["Überfall auf den Hund aus dem Rückentransport","-","-",15]
["Angriff auf den Hund aus der Bewegung",30,20,15]
["Abwehr des Hundes aus der Bewachungsphase","-",20,15]
["Zusammen",{"$f":"SUM(B29:B36)","v":100},{"$f":"SUM(C29:C36)","v":100},100,null,null,"TSB:         ","ausgeprägt"," \u0086"]
[null,null,null,null,null,null,"         ","vorhanden"," \u0086"]
[null,null,null,null,null,null,null,"nicht genügend "," \u0086"]

{"sheet":"RichterbuchFH","index":10,"n_rows":12,"n_cols":19,"rows_kept":12,"cut":false,"hidden":false,"merged":[[0,3,1,5],[5,1,5,4],[5,7,5,9],[2,2,2,6],[2,7,2,9],[3,1,3,7],[4,1,4,4],[4,7,4,9]]}
["Abt. A (Fährte) ",null,null,{"$f":"IF($R$4=\"\",\"\",LOOKUP(J1,'Stammdaten HF'!A:A,'Stammdaten HF'!C:C))","v":"IFH 1"},null,null,null,null,"Kat:",1]
[]
["Name u. Anschrift des HF:",null,{"$f":"IF($R$4=\"\",\"\",CONCATENATE(S4,\" \",R4))","v":"Andreas Mustermax"},null,null,null,null,{"$f":"IF($R$4=\"\",\"\",LOOKUP($J$1,'Stammdaten HF'!$A:A,'Stammdaten HF'!F:F))","v":"sspv MA"}]
["Name des Hundes: ",{"$f":"IF($R$4=\"\",\"\",LOOKUP($J$1,'Stammdaten HF'!$A:A,'Stammdaten HF'!Q:Q))","v":"Axel"},null,null,null,null,null,null," LB-Nr.: ",{"$f":"IF($R$4=\"\",\"\",LOOKUP($J$1,'Stammdaten HF'!$A:A,'Stammdaten HF'!S:S))","v":123},null,null,null,null,null,null,"HF",{"$f":"IF(LOOKUP($J$1,'Stammdaten HF'!$A:A,'Stammdaten HF'!D:D)=0,\"\",LOOKUP($J$1,'Stammdaten HF'!$A:A,'Stammdaten HF'!D:D))","v":"Mustermax"},{"$f":"IF(LOOKUP($J$1,'Stammdaten HF'!$A:B,'Stammdaten HF'!E:E)=0,\"\",LOOKUP($J$1,'Stammdaten HF'!$A:B,'Stammdaten HF'!E:E))","v":"Andreas"}]
["Rasse: ",{"$f":"IF($R$4=\"\",\"\",LOOKUP($J$1,'Stammdaten HF'!$A:A,'Stammdaten HF'!R:R))","v":"Mixy"},null,null,null," Täto-Nr. / Chip-Nr.: ",null,{"$f":"IF($R$4=\"\",\"\",CONCATENATE(R5,\" / \",R6))","v":"MC- 3344 / 454454567883111"},null,null,null,null,null,null,null,null,"Täto",{"$f":"LOOKUP($J$1,'Stammdaten HF'!$A:A,'Stammdaten HF'!W:W)","v":"MC- 3344"}]
["Wurftag: ",{"$f":"IF($R$4=\"\",\"\",LOOKUP($J$1,'Stammdaten HF'!$A:A,'Stammdaten HF'!T:T))","v":"1978-07-01"},null,null,null,null," ZB-Nr.: ",{"$f":"IF($R$4=\"\",\"\",LOOKUP($J$1,'Stammdaten HF'!$A:A,'Stammdaten HF'!V:V))","v":"VDH/DMC 34345"},null,null,null,null,null,null,null,null,"Chip",{"$f":"LOOKUP($J$1,'Stammdaten HF'!$A:A,'Stammdaten HF'!X:X)","v":454454567883111}]
[]
[null,null,null,null,null,null,null,null,null,null,null,null,null,null,null,null,"Stufe"]
[]
["Gelegt um:",null,null,null," Uhr",null,"Ansatz:",null,null,"Uhr"]
[]
["Hund :","verweist",null,null,null,"nimmt auf"]

{"sheet":"RichterbuchBH-VT","index":11,"n_rows":24,"n_cols":19,"rows_kept":24,"cut":false,"hidden":false,"merged":[[0,3,1,5],[15,4,15,9],[15,0,15,3],[16,4,16,9],[17,4,17,9],[11,4,11,9],[12,4,12,9],[13,4,13,9],[7,4,7,9],[8,4,8,9],[9,4,9,9],[10,4,10,9],[2,2,2,6],[2,7,2,9],[3,1,3,7],[4,1,4,4],[20,4,20,9],[21,4,21,9],[16,0,16,3],[17,0,17,3],[18,0,18,3],[19,0,19,3],[20,0,20,3],[21,0,21,3],[4,7,4,9],[5,1,5,4],[5,7,5,9],[18,4,18,9],[19,4,19,9]]}
["Bewertung BH/VT",null,null,{"$f":"IF($R$4=\"\",\"\",LOOKUP(J1,'Stammdaten HF'!A:A,'Stammdaten HF'!C:C))","v":"BH/SK"},null,null,null,null,"Kat:",2]
[]
["Name u. Anschrift des HF:",null,{"$f":"IF($R$4=\"\",\"\",CONCATENATE(S4,\" \",R4))","v":"Marion Fröhlich"},null,null,null,null,{"$f":"IF($R$4=\"\",\"\",LOOKUP($J$1,'Stammdaten HF'!$A:A,'Stammdaten HF'!F:F))","v":"VfH Ilvesheim"}]
["Name des Hundes: ",{"$f":"IF($R$4=\"\",\"\",LOOKUP($J$1,'Stammdaten HF'!$A:A,'Stammdaten HF'!Q:Q))","v":"Trigger"},null,null,null,null,null,null," LB-Nr.: ",{"$f":"IF($R$4=\"\",\"\",LOOKUP($J$1,'Stammdaten HF'!$A:A,'Stammdaten HF'!S:S))","v":4567},null,null,null,null,null,null,"HF",{"$f":"IF(LOOKUP($J$1,'Stammdaten HF'!$A:A,'Stammdaten HF'!D:D)=0,\"\",LOOKUP($J$1,'Stammdaten HF'!$A:A,'Stammdaten HF'!D:D))","v":"Fröhlich"},{"$f":"IF(LOOKUP($J$1,'Stammdaten HF'!$A:B,'Stammdaten HF'!E:E)=0,\"\",LOOKUP($J$1,'Stammdaten HF'!$A:B,'Stammdaten HF'!E:E))","v":"Marion"}]
["Rasse: ",{"$f":"IF($R$4=\"\",\"\",LOOKUP($J$1,'Stammdaten HF'!$A:A,'Stammdaten HF'!R:R))","v":"Hollands"},null,null,null," Täto-Nr. / Chip-Nr.: ",null,{"$f":"IF($R$4=\"\",\"\",CONCATENATE(R5,\" / \",R6))","v":"ohne / 276222333444555"},null,null,null,null,null,null,null,null,"Täto",{"$f":"LOOKUP($J$1,'Stammdaten HF'!$A:A,'Stammdaten HF'!W:W)","v":"ohne"}]
["Wurftag: ",{"$f":"IF($R$4=\"\",\"\",LOOKUP($J$1,'Stammdaten HF'!$A:A,'Stammdaten HF'!T:T))","v":"2013-10-14"},null,null,null,null," ZB-Nr.: ",{"$f":"IF($R$4=\"\",\"\",LOOKUP($J$1,'Stammdaten HF'!$A:A,'Stammdaten HF'!V:V))","v":"asasas"},null,null,null,null,null,null,null,null,"Chip",{"$f":"LOOKUP($J$1,'Stammdaten HF'!$A:A,'Stammdaten HF'!X:X)","v":276222333444555}]
[]
["Übungs-Beschreibung",1,"Pkte.","Prä-dikat","Beschreibung der Leistungen",null,null,null,null,null,null,null,null,null,"Stufe"]
["Leinenführigkeit",15]
["Freifolge",15]
["Absitzen aus der Bewegung",10]
["Ablegen aus der Bewegung",10]
["Ablegen unter Ablenkung",10]
["Zusammen",{"$f":"SUM(B9:B13)","v":60}]
[]
["Begegnung mit:",null,null,null,"Prüfung im Verkehr"]
["Personengruppen"]
["Radfahrern"]
["Autos"]
["Joggern / Inlineskatern"]
["mit anderen Hunden"]
["Verhalten des allein gelassenen Hundes"]
[]
["Werturteil  - bestanden    / nicht bestanden"]

{"sheet":"RichterbuchIBGH","index":12,"n_rows":18,"n_cols":19,"rows_kept":18,"cut":false,"hidden":false,"merged":[[16,6,16,9],[17,6,17,9],[7,6,7,9],[8,6,8,9],[10,6,10,9],[11,6,11,9],[12,6,12,9],[13,6,13,9],[4,1,4,4],[4,7,4,9],[0,3,1,5],[14,6,14,9],[15,6,15,9],[5,1,5,4],[5,7,5,9],[2,2,2,6],[2,7,2,9],[3,1,3,7]]}
["Bewertung IBGH",null,null,{"$f":"IF($R$4=\"\",\"\",LOOKUP(J1,'Stammdaten HF'!A:A,'Stammdaten HF'!C:C))","v":"IFH 1"},null,null,null,null,"Kat:",1]
[]
["Name u. Anschrift des HF:",null,{"$f":"IF($R$4=\"\",\"\",CONCATENATE(S4,\" \",R4))","v":"Andreas Mustermax"},null,null,null,null,{"$f":"IF($R$4=\"\",\"\",LOOKUP($J$1,'Stammdaten HF'!$A:A,'Stammdaten HF'!F:F))","v":"sspv MA"}]
["Name des Hundes: ",{"$f":"IF($R$4=\"\",\"\",LOOKUP($J$1,'Stammdaten HF'!$A:A,'Stammdaten HF'!Q:Q))","v":"Axel"},null,null,null,null,null,null," LB-Nr.: ",{"$f":"IF($R$4=\"\",\"\",LOOKUP($J$1,'Stammdaten HF'!$A:A,'Stammdaten HF'!S:S))","v":123},null,null,null,null,null,null,"HF",{"$f":"IF(LOOKUP($J$1,'Stammdaten HF'!$A:A,'Stammdaten HF'!D:D)=0,\"\",LOOKUP($J$1,'Stammdaten HF'!$A:A,'Stammdaten HF'!D:D))","v":"Mustermax"},{"$f":"IF(LOOKUP($J$1,'Stammdaten HF'!$A:B,'Stammdaten HF'!E:E)=0,\"\",LOOKUP($J$1,'Stammdaten HF'!$A:B,'Stammdaten HF'!E:E))","v":"Andreas"}]
["Rasse: ",{"$f":"IF($R$4=\"\",\"\",LOOKUP($J$1,'Stammdaten HF'!$A:A,'Stammdaten HF'!R:R))","v":"Mixy"},null,null,null," Täto-Nr. / Chip-Nr.: ",null,{"$f":"IF($R$4=\"\",\"\",CONCATENATE(R5,\" / \",R6))","v":"MC- 3344 / 454454567883111"},null,null,null,null,null,null,null,null,"Täto",{"$f":"LOOKUP($J$1,'Stammdaten HF'!$A:A,'Stammdaten HF'!W:W)","v":"MC- 3344"}]
["Wurftag: ",{"$f":"IF($R$4=\"\",\"\",LOOKUP($J$1,'Stammdaten HF'!$A:A,'Stammdaten HF'!T:T))","v":"1978-07-01"},null,null,null,null," ZB-Nr.: ",{"$f":"IF($R$4=\"\",\"\",LOOKUP($J$1,'Stammdaten HF'!$A:A,'Stammdaten HF'!V:V))","v":"VDH/DMC 34345"},null,null,null,null,null,null,null,null,"Chip",{"$f":"LOOKUP($J$1,'Stammdaten HF'!$A:A,'Stammdaten HF'!X:X)","v":454454567883111}]
[]
["Übungs-Beschreibung",1,2,3,"Pkte.","Prä-dikat","Beschreibung der Leistungen",null,null,null,null,null,null,null,null,null,"Stufe"]
["Leinenführigkeit",30,20]
["Freifolge",30,20,20]
["Absitzen aus der Bewegung",15,15,10]
["Ablegen aus der Bewegung",15,15,10]
["Stehen aus dem Schritt","-","-",10]
["Bringen auf ebener Erde","-",10,15]
["Bringen über eine Schrägwand (140cm)","-","-",15]
["Voraussenden mit Hinlegen",null,10,10]
["Ablegen unter Ablenkung",10,10,10]
["Zusammen",{"$f":"SUM(B9:B17)","v":100},{"$f":"SUM(C9:C17)","v":100},{"$f":"SUM(D9:D17)","v":100}]

{"sheet":"RichterbuchSparteF","index":13,"n_rows":12,"n_cols":19,"rows_kept":12,"cut":false,"hidden":false,"merged":[[5,1,5,4],[5,7,5,9],[0,3,1,5],[2,2,2,6],[2,7,2,9],[3,1,3,7],[4,1,4,4],[4,7,4,9]]}
["Abt. A (Fährte) ",null,null,{"$f":"IF($R$4=\"\",\"\",LOOKUP(J1,'Stammdaten HF'!A:A,'Stammdaten HF'!C:C))","v":"IFH 1"},null,null,null,null,"Kat:",1]
[]
["Name u. Anschrift des HF:",null,{"$f":"IF($R$4=\"\",\"\",CONCATENATE(S4,\" \",R4))","v":"Andreas Mustermax"},null,null,null,null,{"$f":"IF($R$4=\"\",\"\",LOOKUP($J$1,'Stammdaten HF'!$A:A,'Stammdaten HF'!F:F))","v":"sspv MA"}]
["Name des Hundes: ",{"$f":"IF($R$4=\"\",\"\",LOOKUP($J$1,'Stammdaten HF'!$A:A,'Stammdaten HF'!Q:Q))","v":"Axel"},null,null,null,null,null,null," LB-Nr.: ",{"$f":"IF($R$4=\"\",\"\",LOOKUP($J$1,'Stammdaten HF'!$A:A,'Stammdaten HF'!S:S))","v":123},null,null,null,null,null,null,"HF",{"$f":"IF(LOOKUP($J$1,'Stammdaten HF'!$A:A,'Stammdaten HF'!D:D)=0,\"\",LOOKUP($J$1,'Stammdaten HF'!$A:A,'Stammdaten HF'!D:D))","v":"Mustermax"},{"$f":"IF(LOOKUP($J$1,'Stammdaten HF'!$A:B,'Stammdaten HF'!E:E)=0,\"\",LOOKUP($J$1,'Stammdaten HF'!$A:B,'Stammdaten HF'!E:E))","v":"Andreas"}]
["Rasse: ",{"$f":"IF($R$4=\"\",\"\",LOOKUP($J$1,'Stammdaten HF'!$A:A,'Stammdaten HF'!R:R))","v":"Mixy"},null,null,null," Täto-Nr. / Chip-Nr.: ",null,{"$f":"IF($R$4=\"\",\"\",CONCATENATE(R5,\" / \",R6))","v":"MC- 3344 / 454454567883111"},null,null,null,null,null,null,null,null,"Täto",{"$f":"LOOKUP($J$1,'Stammdaten HF'!$A:A,'Stammdaten HF'!W:W)","v":"MC- 3344"}]
["Wurftag: ",{"$f":"IF($R$4=\"\",\"\",LOOKUP($J$1,'Stammdaten HF'!$A:A,'Stammdaten HF'!T:T))","v":"1978-07-01"},null,null,null,null," ZB-Nr.: ",{"$f":"IF($R$4=\"\",\"\",LOOKUP($J$1,'Stammdaten HF'!$A:A,'Stammdaten HF'!V:V))","v":"VDH/DMC 34345"},null,null,null,null,null,null,null,null,"Chip",{"$f":"LOOKUP($J$1,'Stammdaten HF'!$A:A,'Stammdaten HF'!X:X)","v":454454567883111}]
[]
[null,null,null,null,null,null,null,null,null,null,null,null,null,null,null,null,"Stufe"]
[]
["Gelegt um:",null,null,null," Uhr",null,"Ansatz:",null,null,"Uhr"]
[]
["Hund :","verweist",null,null,null,"nimmt auf"]

{"sheet":"RichterbuchSparteU","index":14,"n_rows":18,"n_cols":19,"rows_kept":18,"cut":false,"hidden":false,"merged":[[10,6,10,9],[0,3,1,5],[2,2,2,6],[2,7,2,9],[3,1,3,7],[4,1,4,4],[4,7,4,9],[5,1,5,4],[5,7,5,9],[7,6,7,9],[8,6,8,9],[9,6,9,9],[17,6,17,9],[11,6,11,9],[12,6,12,9],[13,6,13,9],[14,6,14,9],[15,6,15,9],[16,6,16,9]]}
["Abt. B (Unterordnung)",null,null,{"$f":"IF($R$4=\"\",\"\",LOOKUP(J1,'Stammdaten HF'!A:A,'Stammdaten HF'!C:C))","v":"IFH 1"},null,null,null,null,"Kat:",1]
[]
["Name u. Anschrift des HF:",null,{"$f":"IF($R$4=\"\",\"\",CONCATENATE(S4,\" \",R4))","v":"Andreas Mustermax"},null,null,null,null,{"$f":"IF($R$4=\"\",\"\",LOOKUP($J$1,'Stammdaten HF'!$A:A,'Stammdaten HF'!F:F))","v":"sspv MA"}]
["Name des Hundes: ",{"$f":"IF($R$4=\"\",\"\",LOOKUP($J$1,'Stammdaten HF'!$A:A,'Stammdaten HF'!Q:Q))","v":"Axel"},null,null,null,null,null,null," LB-Nr.: ",{"$f":"IF($R$4=\"\",\"\",LOOKUP($J$1,'Stammdaten HF'!$A:A,'Stammdaten HF'!S:S))","v":123},null,null,null,null,null,null,"HF",{"$f":"IF(LOOKUP($J$1,'Stammdaten HF'!$A:A,'Stammdaten HF'!D:D)=0,\"\",LOOKUP($J$1,'Stammdaten HF'!$A:A,'Stammdaten HF'!D:D))","v":"Mustermax"},{"$f":"IF(LOOKUP($J$1,'Stammdaten HF'!$A:B,'Stammdaten HF'!E:E)=0,\"\",LOOKUP($J$1,'Stammdaten HF'!$A:B,'Stammdaten HF'!E:E))","v":"Andreas"}]
["Rasse: ",{"$f":"IF($R$4=\"\",\"\",LOOKUP($J$1,'Stammdaten HF'!$A:A,'Stammdaten HF'!R:R))","v":"Mixy"},null,null,null," Täto-Nr. / Chip-Nr.: ",null,{"$f":"IF($R$4=\"\",\"\",CONCATENATE(R5,\" / \",R6))","v":"MC- 3344 / 454454567883111"},null,null,null,null,null,null,null,null,"Täto",{"$f":"LOOKUP($J$1,'Stammdaten HF'!$A:A,'Stammdaten HF'!W:W)","v":"MC- 3344"}]
["Wurftag: ",{"$f":"IF($R$4=\"\",\"\",LOOKUP($J$1,'Stammdaten HF'!$A:A,'Stammdaten HF'!T:T))","v":"1978-07-01"},null,null,null,null," ZB-Nr.: ",{"$f":"IF($R$4=\"\",\"\",LOOKUP($J$1,'Stammdaten HF'!$A:A,'Stammdaten HF'!V:V))","v":"VDH/DMC 34345"},null,null,null,null,null,null,null,null,"Chip",{"$f":"LOOKUP($J$1,'Stammdaten HF'!$A:A,'Stammdaten HF'!X:X)","v":454454567883111}]
[]
["Übungs-Beschreibung",1,2,3,"Pkte.","Prä-dikat","Beschreibung der Leistungen",null,null,null,null,null,null,null,null,null,"Stufe"]
["Freifolge",15,15,15]
["Sitz aus der Bewegung",10,10,5]
["Ablegen in Verbindung mit Herankommen",10,10,10]
["Stehen aus der Bewegung","-",5,10]
["Bringen auf ebener Erde",15,10,10]
["Bringen über eine Hürde",15,15,15]
["Bringen über eine Schrägwand",15,15,15]
["Voraussenden mit Hinlegen",10,10,10]
["Ablegen unter Ablenkung",10,10,10]
["Zusammen",{"$f":"SUM(B9:B17)","v":100},{"$f":"SUM(C9:C17)","v":100},{"$f":"SUM(D9:D17)","v":100}]

{"sheet":"RichterbuchSparteS","index":15,"n_rows":19,"n_cols":19,"rows_kept":19,"cut":false,"hidden":false,"merged":[[0,3,1,5],[2,2,2,6],[2,7,2,9],[3,1,3,7],[4,1,4,4],[4,7,4,9],[7,6,7,9],[8,6,8,9],[9,6,9,9],[10,6,10,9],[5,1,5,4],[5,7,5,9],[16,0,18,0],[16,1,18,1],[16,2,18,2],[16,3,18,3],[16,4,18,4],[16,5,18,5],[11,6,11,9],[12,6,12,9],[13,6,13,9],[14,6,14,9],[15,6,15,9]]}
["Abt. C (Schutzdienst) ",null,null,{"$f":"IF($R$4=\"\",\"\",LOOKUP(J1,'Stammdaten HF'!A:A,'Stammdaten HF'!C:C))","v":"IFH 1"},null,null,null,null,"Kat:",1]
[]
["Name u. Anschrift des HF:",null,{"$f":"IF($R$4=\"\",\"\",CONCATENATE(S4,\" \",R4))","v":"Andreas Mustermax"},null,null,null,null,{"$f":"IF($R$4=\"\",\"\",LOOKUP($J$1,'Stammdaten HF'!$A:A,'Stammdaten HF'!F:F))","v":"sspv MA"}]
["Name des Hundes: ",{"$f":"IF($R$4=\"\",\"\",LOOKUP($J$1,'Stammdaten HF'!$A:A,'Stammdaten HF'!Q:Q))","v":"Axel"},null,null,null,null,null,null," LB-Nr.: ",{"$f":"IF($R$4=\"\",\"\",LOOKUP($J$1,'Stammdaten HF'!$A:A,'Stammdaten HF'!S:S))","v":123},null,null,null,null,null,null,"HF",{"$f":"IF(LOOKUP($J$1,'Stammdaten HF'!$A:A,'Stammdaten HF'!D:D)=0,\"\",LOOKUP($J$1,'Stammdaten HF'!$A:A,'Stammdaten HF'!D:D))","v":"Mustermax"},{"$f":"IF(LOOKUP($J$1,'Stammdaten HF'!$A:B,'Stammdaten HF'!E:E)=0,\"\",LOOKUP($J$1,'Stammdaten HF'!$A:B,'Stammdaten HF'!E:E))","v":"Andreas"}]
["Rasse: ",{"$f":"IF($R$4=\"\",\"\",LOOKUP($J$1,'Stammdaten HF'!$A:A,'Stammdaten HF'!R:R))","v":"Mixy"},null,null,null," Täto-Nr. / Chip-Nr.: ",null,{"$f":"IF($R$4=\"\",\"\",CONCATENATE(R5,\" / \",R6))","v":"MC- 3344 / 454454567883111"},null,null,null,null,null,null,null,null,"Täto",{"$f":"LOOKUP($J$1,'Stammdaten HF'!$A:A,'Stammdaten HF'!W:W)","v":"MC- 3344"}]
["Wurftag: ",{"$f":"IF($R$4=\"\",\"\",LOOKUP($J$1,'Stammdaten HF'!$A:A,'Stammdaten HF'!T:T))","v":"1978-07-01"},null,null,null,null," ZB-Nr.: ",{"$f":"IF($R$4=\"\",\"\",LOOKUP($J$1,'Stammdaten HF'!$A:A,'Stammdaten HF'!V:V))","v":"VDH/DMC 34345"},null,null,null,null,null,null,null,null,"Chip",{"$f":"LOOKUP($J$1,'Stammdaten HF'!$A:A,'Stammdaten HF'!X:X)","v":454454567883111}]
[]
["Übungs-Beschreibung",1,2,3,"Pkte.","Prä-dikat","Beschreibung der Leistungen"]
["Revieren nach dem Helfer",5,5,10]
["Stellen und Verbellen",15,15,15]
["Verhinderung eines Fluchtversuchs des Helfers",20,15,10]
["Abwehr eines Angriffes aus der Bewachungsphase",30,20,15]
["Rückentransport","-",5,5]
["Überfall auf den Hund aus dem Rückentransport","-","-",15]
["Angriff auf den Hund aus der Bewegung",30,20,15]
["Abwehr des Hundes aus der Bewachungsphase","-",20,15]
["Zusammen",{"$f":"SUM(B9:B16)","v":100},{"$f":"SUM(C9:C16)","v":100},100,null,null,"TSB:         ","ausgeprägt"," \u0086"]
[null,null,null,null,null,null,"         ","vorhanden"," \u0086"]
[null,null,null,null,null,null,null,"nicht genügend "," \u0086"]

{"sheet":"RichterbuchStöber","index":16,"n_rows":19,"n_cols":19,"rows_kept":19,"cut":false,"hidden":false,"merged":[[18,0,18,1],[18,3,18,4],[12,5,12,9],[13,5,13,9],[14,5,14,9],[15,5,15,9],[16,5,16,9],[17,5,17,9],[18,5,18,9],[16,0,16,1],[17,0,17,1],[12,0,12,1],[12,3,12,4],[13,3,13,4],[14,3,14,4],[15,3,15,4],[16,3,16,4],[17,3,17,4],[7,1,7,3],[7,4,7,8],[8,1,8,3],[8,4,8,8],[9,1,9,3],[9,4,9,8],[13,0,13,1],[14,0,14,1],[5,1,5,4],[5,7,5,9],[15,0,15,1],[0,3,1,5],[2,2,2,6],[2,7,2,9],[3,1,3,7],[4,1,4,4],[4,7,4,9]]}
["Stöberprüfung",null,null,{"$f":"IF($R$4=\"\",\"\",LOOKUP(J1,'Stammdaten HF'!A:A,'Stammdaten HF'!C:C))","v":"IFH 1"},null,null,null,null,"Kat:",1]
[]
["Name u. Anschrift des HF:",null,{"$f":"IF($R$4=\"\",\"\",CONCATENATE(S4,\" \",R4))","v":"Andreas Mustermax"},null,null,null,null,{"$f":"IF($R$4=\"\",\"\",LOOKUP($J$1,'Stammdaten HF'!$A:A,'Stammdaten HF'!F:F))","v":"sspv MA"}]
["Name des Hundes: ",{"$f":"IF($R$4=\"\",\"\",LOOKUP($J$1,'Stammdaten HF'!$A:A,'Stammdaten HF'!Q:Q))","v":"Axel"},null,null,null,null,null,null," LB-Nr.: ",{"$f":"IF($R$4=\"\",\"\",LOOKUP($J$1,'Stammdaten HF'!$A:A,'Stammdaten HF'!S:S))","v":123},null,null,null,null,null,null,"HF",{"$f":"IF(LOOKUP($J$1,'Stammdaten HF'!$A:A,'Stammdaten HF'!D:D)=0,\"\",LOOKUP($J$1,'Stammdaten HF'!$A:A,'Stammdaten HF'!D:D))","v":"Mustermax"},{"$f":"IF(LOOKUP($J$1,'Stammdaten HF'!$A:B,'Stammdaten HF'!E:E)=0,\"\",LOOKUP($J$1,'Stammdaten HF'!$A:B,'Stammdaten HF'!E:E))","v":"Andreas"}]
["Rasse: ",{"$f":"IF($R$4=\"\",\"\",LOOKUP($J$1,'Stammdaten HF'!$A:A,'Stammdaten HF'!R:R))","v":"Mixy"},null,null,null," Täto-Nr. / Chip-Nr.: ",null,{"$f":"IF($R$4=\"\",\"\",CONCATENATE(R5,\" / \",R6))","v":"MC- 3344 / 454454567883111"},null,null,null,null,null,null,null,null,"Täto",{"$f":"LOOKUP($J$1,'Stammdaten HF'!$A:A,'Stammdaten HF'!W:W)","v":"MC- 3344"}]
["Wurftag: ",{"$f":"IF($R$4=\"\",\"\",LOOKUP($J$1,'Stammdaten HF'!$A:A,'Stammdaten HF'!T:T))","v":"1978-07-01"},null,null,null,null," ZB-Nr.: ",{"$f":"IF($R$4=\"\",\"\",LOOKUP($J$1,'Stammdaten HF'!$A:A,'Stammdaten HF'!V:V))","v":"VDH/DMC 34345"},null,null,null,null,null,null,null,null,"Chip",{"$f":"LOOKUP($J$1,'Stammdaten HF'!$A:A,'Stammdaten HF'!X:X)","v":454454567883111}]
[]
["Stufe 1","20x30 m",null,null,"2 Gegenstände (20/21 Punkte)",null,null,null,null,"10 Min"]
["Stufe 2","20x40 m",null,null,"4 Gegenstände (10/10/10/11 Punkte)",null,null,null,null,"12 Min"]
["Stufe 3","30x50 m",null,null,"5 Gegenstände (8/8/8/8/9 Punkte)",null,null,null,null,"15 Min"]
[]
[]
["Prüfungsanforderungen",null,"Pkte.","vergeben",null,"Beschreibung der Leistungen"]
["Führigkeit des Hundes\n\n(Befolgen der Hör- / Sichtzeichen des HF)",null,20]
["Spürintensität des Hundes\n\n(Bereitschaft intensiver  Witterungsaufnahme)",null,20]
["Ausdauer\n \n(Anhalten des Spürtriebes bis zum Auffinden des   Gegenstandes)",null,10]
["Verhalten des HF\n\n(Einwirkungen auf den Hund)\n",null,9]
["Auffinden der Gegenstände\n \n(Überzeugendes Verweisen)",null,41]
["Zusammen",null,{"$f":"SUM(C14:C18)","v":100},null,null,"Wertnote: "]

{"sheet":"RichterbuchTeam","index":17,"n_rows":33,"n_cols":20,"rows_kept":33,"cut":false,"hidden":false,"merged":[[30,1,30,9],[12,10,13,10],[14,10,15,10],[17,10,18,10],[19,10,20,10],[21,10,22,10],[23,10,24,10],[25,10,26,10],[27,10,28,10],[29,10,30,10],[25,0,25,9],[27,0,27,9],[29,0,29,9],[26,1,26,9],[28,1,28,9],[14,0,14,9],[17,0,17,9],[19,0,19,9],[21,0,21,9],[5,0,5,1],[7,0,7,1],[8,0,8,9],[9,1,9,9],[5,2,5,5],[5,8,5,10],[15,1,15,9],[0,0,0,1],[1,0,1,1],[2,0,2,1],[3,0,3,1],[4,0,4,1],[0,4,1,6],[2,8,2,10],[3,2,3,8],[4,2,4,5],[4,8,4,10],[2,2,2,7],[32,0,32,6],[32,7,32,9],[10,0,10,9],[12,0,12,9],[10,10,11,10],[31,7,31,9],[31,0,31,6],[11,1,11,9],[18,1,18,9],[20,1,20,9],[22,1,22,9],[24,1,24,9],[23,0,23,9],[16,0,16,7],[16,8,16,9],[13,1,13,9]]}
["Team-Test",null,null,null,{"$f":"IF($S$4=\"\",\"\",LOOKUP(J1,'Stammdaten HF'!A:A,'Stammdaten HF'!C:C))","v":"IFH 1"},null,null,null,"Kat:",1]
[]
["Name u. Anschrift des HF:",null,{"$f":"IF($S$4=\"\",\"\",CONCATENATE(T4,\" \",S4))","v":"Andreas Mustermax"},null,null,null,null,null,{"$f":"IF($S$4=\"\",\"\",LOOKUP($J$1,'Stammdaten HF'!$A:A,'Stammdaten HF'!F:F))","v":"sspv MA"}]
["Name des Hundes: ",null,{"$f":"IF($S$4=\"\",\"\",LOOKUP($J$1,'Stammdaten HF'!$A:A,'Stammdaten HF'!Q:Q))","v":"Axel"},null,null,null,null,null,null," LB-Nr.: ",{"$f":"IF($S$4=\"\",\"\",LOOKUP($J$1,'Stammdaten HF'!$A:A,'Stammdaten HF'!S:S))","v":123},null,null,null,null,null,null,"HF",{"$f":"IF(LOOKUP($J$1,'Stammdaten HF'!$A:A,'Stammdaten HF'!D:D)=0,\"\",LOOKUP($J$1,'Stammdaten HF'!$A:A,'Stammdaten HF'!D:D))","v":"Mustermax"},{"$f":"IF(LOOKUP($J$1,'Stammdaten HF'!$A:B,'Stammdaten HF'!E:E)=0,\"\",LOOKUP($J$1,'Stammdaten HF'!$A:B,'Stammdaten HF'!E:E))","v":"Andreas"}]
["Rasse: ",null,{"$f":"IF($S$4=\"\",\"\",LOOKUP($J$1,'Stammdaten HF'!$A:A,'Stammdaten HF'!R:R))","v":"Mixy"},null,null,null," Täto-Nr. / Chip-Nr.: ",null,{"$f":"IF($S$4=\"\",\"\",CONCATENATE(S5,\" / \",S6))","v":"MC- 3344 / 454454567883111"},null,null,null,null,null,null,null,null,"Täto",{"$f":"LOOKUP($J$1,'Stammdaten HF'!$A:A,'Stammdaten HF'!W:W)","v":"MC- 3344"}]
["Wurftag: ",null,{"$f":"IF($S$4=\"\",\"\",LOOKUP($J$1,'Stammdaten HF'!$A:A,'Stammdaten HF'!T:T))","v":"1978-07-01"},null,null,null,null," ZB-Nr.: ",{"$f":"IF($S$4=\"\",\"\",LOOKUP($J$1,'Stammdaten HF'!$A:A,'Stammdaten HF'!V:V))","v":"VDH/DMC 34345"},null,null,null,null,null,null,null,null,"Chip",{"$f":"LOOKUP($J$1,'Stammdaten HF'!$A:A,'Stammdaten HF'!X:X)","v":454454567883111}]
[]
[null,null,null,null,null,null,null,null,null,null,"Ges. Pkte"]
["Leinenführigkeit (20 Punkte)",null,null,null,null,null,null,null,null,null,null,null,null,null,null,null,null,"Stufe"]
[1]
["Sitzübung (10 Punkte)"]
[2]
["Platzübung (10 Punkte)"]
[3]
["Anbinden (10 Punkte)"]
[4]
[null,null,null,null,null,null,null,null,"Punktzahl Aufgabe 1 -4 \n(max. 50 Punkte)"]
["Durchqueren einer Personengruppe (15 Punkte)"]
[5]
["Begrüßung von Personen (15 Punkte)"]
[6]
["Außerartliche Unbefangenheit - Ball    (15 Punkte)"]
[7]
["Innerartliche Unbefangenheit - Spiel mit anderem Hund  (15 Punkte)"]
[8]
["Begegnungsverkehr mit Jogger/ Inline-Skater   (15 Punkte)"]
[9,"\n"]
["Begegnungsver-kehr mit Zweirad (Fahrrad, Moped, …)     (15 Punkte)"]
[10]
["Begegnungsverkehr mit Auto  (10 Punkte)"]
[11]
["Bei den Aufgaben 5 - 11 sind je Aufgabe \nmind. 50 % der vorgesehenen Punkte zu erzielen",null,null,null,null,null,null,"Punktzahl Aufgabe 5 - 11\n(max. 100 Punkte)"]
["Mindestpunktzahl für das Bestehen des „Team – Test“\nsind 80 Punkte ( max. sind 150 Gesamtpunkte erreichbar) ",null,null,null,null,null,null,"Gesamtpunktzahl:   "]

{"sheet":"Tabelle3","index":18,"n_rows":0,"n_cols":0,"rows_kept":0,"cut":false,"hidden":false,"merged":[]}